Workbook

Sheet README
B2: With the values your entered, the CDI behavior will be the following:
H4: Where to change that?
A6: A) | B6: =CONCATENATE("5 degrees ",VeryLowRPM!B2) -> 5 degrees Advance from 91 to 960 RPM | H6: By default (VeryLowRPM tab)
A8: B) | B8: =CONCATENATE("Flat advance from ",advance_at_lowRPM!X7," to ",Advance_curve!D103,"RPM") -> Flat advance from 960 to 1116RPM | H8: cell I2 in tab "advance_at_lowRPM"
A10: C) | B10: =CONCATENATE("Advance curve is freely adjustable from ",Advance_curve!D103, " to ",Advance_curve!D14,"RPM") -> Advance curve is freely adjustable from 1116 to 7324RPM | H10: cell B9 in tab "Advance_curve"
B12: Eprom values to burn into the microcontroller | H12: cells O18 to 035 in tab "Advance_curve"
B14: =CONCATENATE("No spark when engine goes above ",Advance_curve!D9,"RPM - Act as absolute rev-limiter") -> No spark when engine goes above 10653RPM - Act as absolute rev-limiter | H14: cell B9 in tab "Advance_curve"
B16: Optional rev-limiter activated by JP2 jumper | H16: cell M30 in tab "Advance_curve"
B18: ONLY YELLOW CELLS ARE CHANGEABLE

Sheet Advance_curve
B1: 14/03/2022 | D1: Version 16F628A v7.9r20c2 | I1: 79 | J1: 20 | K1: 2
F3: 1 ò | I3: incompressible | J3: Step
F4: pickup position | I4: delay (us) | J4: (us)
F5: 50 | G5: degrees BTDC | I5: 71 | J5: 20
G6: =IF(MAX(J9:J103)>254,"Some cells warn. Increase STEP cell J5 ?","") -> Some cells warn. Increase STEP cell J5 ?
F7: 4 ò | J7: =IF(ISERROR(J9),"Load DECHEX macro","") -> 
B8: TIMER1H count | C8: Frq (Hz) | D8: RPM | E8: time for 1° (µs) | F8: Advance (degrees) | G8: Delay needed (ms) | H8: Delay nedeed (µs) | I8: Delay to add (µs) | J8: Values for the map
A9: 3 ð | B9: 11 | C9: =(2*$M$24*D9)/(60*$M$25) -> 88.775 | D9: =INT((60*1000000)/((B9*256)*(1/(1/$M$30)))) -> 10653 | E9: =((1000*1000*60)/($M$24*D9))/360 -> 15.64504521 | F9: 10 | G9: =(E9*($F$5-F9))/1000 -> 0.6258018086 | H9: =E9*($F$5-F9) -> 625.8018086 | I9: =IF($H9>$I$5,INT($H9-$I$5),"out of range") -> 554 | J9: =IF($I9/$J$5>255,255,IF($I9>0.01,INT($I9/$J$5),1)) -> 27 | K9: =IF($I9/$J$5>255,CONCATENATE("WARNING: Timing will be more then ",F9,"°"),"") ->  | X9: =CONCATENATE(J9," ;",ROUND(D9,0),"rpm | ",ROUND(F9,1),"° | ",,ROUND(G9,2),"ms ") -> 27 ;10653rpm | 10° | 0,63ms
B10: =IF((B9+1)<(95+$B$9),B9+1,"- End -") -> 12 | C10: 81.375 | D10: 9765 | E10: =((1000*1000*60)/($M$24*D10))/360 -> 17.067759 | F10: 11 | G10: 0.6656426011 | H10: 665.6426011 | I10: =IF($H10>$I$5,INT($H10-$I$5),"out of range") -> 594 | J10: =IF($I10/$J$5>255,255,IF($I10>0.01,INT($I10/$J$5),1)) -> 29 | X10: 29 ;9765rpm | 11° | 0,67ms
B11: =IF((B10+1)<(95+$B$9),B10+1,"- End -") -> 13 | C11: 75.11666667 | D11: 9014 | E11: 18.48975667 | F11: 12 | G11: 0.7026107536 | H11: 702.6107536 | I11: =IF($H11>$I$5,INT($H11-$I$5),"out of range") -> 631 | J11: 31 | X11: 31 ;9014rpm | 12° | 0,7ms
B12: 14 | C12: 69.75 | D12: 8370 | E12: 19.9123855 | F12: 13 | G12: 0.7367582636 | H12: 736.7582636 | I12: 665 | J12: 33 | X12: 33 ;8370rpm | 13° | 0,74ms
B13: 15 | C13: 65.1 | D13: 7812 | E13: 21.33469875 | F13: 14 | G13: 0.7680491551 | H13: 768.0491551 | I13: 697 | J13: 34 | X13: 34 ;7812rpm | 14° | 0,77ms
B14: 16 | C14: 61.03333333 | D14: 7324 | E14: 22.75623521 | F14: 14 | G14: 0.8192244675 | H14: 819.2244675 | I14: 748 | J14: 37 | X14: 37 ;7324rpm | 14° | 0,82ms
B15: 17 | C15: 57.44166667 | D15: 6893 | E15: 24.17911891 | F15: 14 | G15: 0.8704482809 | H15: 870.4482809 | I15: 799 | J15: 39 | X15: 39 ;6893rpm | 14° | 0,87ms
B16: 18 | C16: 54.25 | D16: 6510 | E16: 25.6016385 | F16: 14 | G16: 0.9216589862 | H16: 921.6589862 | I16: 850 | J16: 42 | X16: 42 ;6510rpm | 14° | 0,92ms
B17: 19 | C17: 51.39166667 | D17: 6167 | E17: 27.02556619 | F17: 14 | G17: 0.9729203827 | H17: 972.9203827 | I17: 901 | J17: 45 | N17: EEprom data ð | O17: =EEPROM16!O1 -> INTEL 16HEX format | S17: =EEPROM8!M1 -> INTEL 8HEX format | X17: 45 ;6167rpm | 14° | 0,97ms
B18: 20 | C18: 48.825 | D18: 5859 | E18: 28.44626501 | F18: 14 | G18: 1.02406554 | H18: 1024.06554 | I18: 953 | J18: 47 | Q18: =EEPROM8!O1 -> RAW format | X18: 47 ;5859rpm | 14° | 1,02ms
B19: 21 | C19: 46.5 | D19: 5580 | E19: 29.86857826 | F19: 14 | G19: 1.075268817 | H19: 1075.268817 | I19: 1004 | J19: 50 | O19: =EEPROM16!O3 -> :020000040000FA | S19: =EEPROM8!M2 -> :020000040000FA | X19: 50 ;5580rpm | 14° | 1,08ms
B20: 22 | C20: 44.38333333 | D20: 5326 | E20: 31.29302791 | F20: 14 | G20: 1.126549005 | H20: 1126.549005 | I20: 1055 | J20: 52 | O20: =EEPROM16!O4 -> :104200001B001D001F0021002200250027002A0000 | Q20: =EEPROM8!O3 -> 1B 1D 1F 21 22 25 27 2A | S20: =EEPROM8!M3 -> :080000001B1D1F212225272AE8 | X20: 52 ;5326rpm | 14° | 1,13ms
B21: 23 | C21: 42.45833333 | D21: 5095 | E21: 32.71180896 | F21: 14 | G21: 1.177625123 | H21: 1177.625123 | I21: 1106 | J21: 55 | O21: =EEPROM16!O5 -> :104210002D002F0032003400370039003C003F0053 | Q21: =EEPROM8!O4 -> 2D 2F 32 34 37 39 3C 3F | S21: =EEPROM8!M4 -> :080008002D2F323437393C3F43 | X21: 55 ;5095rpm | 14° | 1,18ms
B22: 24 | C22: 40.68333333 | D22: 4882 | E22: 34.13901407 | F22: 14 | G22: 1.229004506 | H22: 1229.004506 | I22: 1158 | J22: 57 | M22: 2 ò | O22: =EEPROM16!O6 -> :1042200041004400460049004B004E0050005300A0 | Q22: =EEPROM8!O5 -> 41 44 46 49 4B 4E 50 53 | S22: =EEPROM8!M5 -> :08001000414446494B4E505398 | X22: 57 ;4882rpm | 14° | 1,23ms
B23: 25 | C23: 39.05833333 | D23: 4687 | E23: 35.55934855 | F23: 14 | G23: 1.280136548 | H23: 1280.136548 | I23: 1209 | J23: 60 | O23: =EEPROM16!O7 -> :10423000560058005B005D006000620065006700EC | Q23: =EEPROM8!O6 -> 56 58 5B 5D 60 62 65 67 | S23: =EEPROM8!M6 -> :0800180056585B5D60626567EC | X23: 60 ;4687rpm | 14° | 1,28ms
B24: 26 | C24: 37.55833333 | D24: 4507 | E24: 36.97951335 | F24: 14 | G24: 1.331262481 | H24: 1331.262481 | I24: 1260 | J24: 63 | L24: Number of cylinder | M24: 1 | O24: =EEPROM16!O8 -> :104240006A006D006F0072007400770079007C0038 | Q24: =EEPROM8!O7 -> 6A 6D 6F 72 74 77 79 7C | S24: =EEPROM8!M7 -> :080020006A6D6F727477797C40 | X24: 63 ;4507rpm | 14° | 1,33ms
B25: 27 | C25: 36.16666667 | D25: 4340 | E25: 38.40245776 | F25: 14 | G25: 1.382488479 | H25: 1382.488479 | I25: 1311 | J25: 65 | M25: =IF(M26="4 no wasted spark",4,2) -> 4 | O25: =EEPROM16!O9 -> :104250007F0081008400860089008B008E00900084 | Q25: =EEPROM8!O8 -> 7F 81 84 86 89 8B 8E 90 | S25: =EEPROM8!M8 -> :080028007F818486898B8E9094 | X25: 65 ;4340rpm | 14° | 1,38ms
B26: 28 | C26: 34.875 | D26: 4185 | E26: 39.82477101 | F26: 14 | G26: 1.433691756 | H26: 1433.691756 | I26: 1362 | J26: 68 | L26: Strokes | M26: 4 no wasted spark | O26: =EEPROM16!O10 -> :104260009300960098009B009D00A000A200A500D0 | Q26: =EEPROM8!O9 -> 93 96 98 9B 9D A0 A2 A5 | S26: =EEPROM8!M9 -> :080030009396989B9DA0A2A5E8 | X26: 68 ;4185rpm | 14° | 1,43ms
B27: 29 | C27: 33.66666667 | D27: 4040 | E27: 41.25412541 | F27: 14 | G27: 1.485148515 | H27: 1485.148515 | I27: 1414 | J27: 70 | O27: =EEPROM16!O11 -> :10427000A700AA00AD00AF00B200B400B700B9001D | Q27: =EEPROM8!O10 -> A7 AA AD AF B2 B4 B7 B9 | S27: =EEPROM8!M10 -> :08003800A7AAADAFB2B4B7B93D | X27: 70 ;4040rpm | 14° | 1,49ms
B28: 30 | C28: 32.55 | D28: 3906 | E28: 42.66939751 | F28: 14 | G28: 1.53609831 | H28: 1536.09831 | I28: 1465 | J28: 73 | O28: =EEPROM16!O12 -> :10428000BC00BF00C100C400C600C900CB00CE0068 | Q28: =EEPROM8!O11 -> BC BF C1 C4 C6 C9 CB CE | S28: =EEPROM8!M11 -> :08004000BCBFC1C4C6C9CBCE90 | X28: 73 ;3906rpm | 14° | 1,54ms
B29: 31 | C29: 31.5 | D29: 3780 | E29: 44.09171076 | F29: 14 | G29: 1.587301587 | H29: 1587.301587 | I29: 1516 | J29: 75 | O29: =EEPROM16!O13 -> :10429000D100D300D600D800DB00DD00E000E200B4 | Q29: =EEPROM8!O12 -> D1 D3 D6 D8 DB DD E0 E2 | S29: =EEPROM8!M12 -> :08004800D1D3D6D8DBDDE0E2E4 | X29: 75 ;3780rpm | 14° | 1,59ms
B30: 32 | C30: 30.51666667 | D30: 3662 | E30: 45.51247042 | F30: 14 | G30: 1.638448935 | H30: 1638.448935 | I30: 1567 | J30: 78 | L30: prescaler | M30: 2 | O30: =EEPROM16!O14 -> :1042A000E500E800EA00ED00EF00F200F400F70000 | Q30: =EEPROM8!O13 -> E5 E8 EA ED EF F2 F4 F7 | S30: =EEPROM8!M13 -> :08005000E5E8EAEDEFF2F4F738 | X30: 78 ;3662rpm | 14° | 1,64ms
B31: 33 | C31: 29.59166667 | D31: 3551 | E31: 46.93513564 | F31: 14 | G31: 1.689664883 | H31: 1689.664883 | I31: 1618 | J31: 80 | O31: =EEPROM16!O15 -> :1042B000FA00FC00FF00FF00FF00FF00FF0000006F | Q31: =EEPROM8!O14 -> FA FC FF FF FF FF FF 00 | S31: =EEPROM8!M14 -> :08005800FAFCFFFFFFFFFF00AF | X31: 80 ;3551rpm | 14° | 1,69ms
B32: 34 | C32: 28.71666667 | D32: 3446 | E32: 48.3652544 | F32: 14 | G32: 1.741149158 | H32: 1741.149158 | I32: 1670 | J32: 83 | L32: output width | M32: Auto | N32: us | O32: =EEPROM16!O16 -> :1042C0000000000000000000000000000000000050 | Q32: =EEPROM8!O15 -> 00 00 00 00 00 00 00 00 | S32: =EEPROM8!M15 -> :08006000000000000000000098 | X32: 83 ;3446rpm | 14° | 1,74ms
B33: 35 | C33: 27.9 | D33: 3348 | E33: 49.78096376 | F33: 14 | G33: 1.792114695 | H33: 1792.114695 | I33: 1721 | J33: 86 | O33: =EEPROM16!O17 -> :1042D0000000000000000000000000000000000040 | Q33: =EEPROM8!O16 -> 00 00 00 00 00 00 00 00 | S33: =EEPROM8!M16 -> :08006800000000000000000090 | X33: 86 ;3348rpm | 14° | 1,79ms
B34: 36 | C34: 27.125 | D34: 3255 | E34: 51.20327701 | F34: 14 | G34: 1.843317972 | H34: 1843.317972 | I34: 1772 | J34: 88 | L34: Optional Rev Limit | M34: 9765 | N34: RPM | O34: =EEPROM16!O18 -> :1042E0004F0014000200320014001400140001005C | Q34: =EEPROM8!O17 -> 4F 14 02 32 14 14 14 01 | S34: =EEPROM8!M17 -> :080070004F14023214141401B4 | X34: 88 ;3255rpm | 14° | 1,84ms
B35: 37 | C35: 26.39166667 | D35: 3167 | E35: 52.62603936 | F35: 14 | G35: 1.894537417 | H35: 1894.537417 | I35: 1823 | J35: 91 | M35: =IF(M36="no",0,1) -> 1 | O35: =EEPROM16!O19 -> :1042F00012000C00630002000F0014000B00690006 | Q35: =EEPROM8!O18 -> 12 0C 63 02 0F 14 0B 69 | S35: =EEPROM8!M18 -> :08007800120C63020F140B6966 | X35: 91 ;3167rpm | 14° | 1,89ms
B36: 38 | C36: 25.69166667 | D36: 3083 | E36: 54.05989837 | F36: 14 | G36: 1.946156341 | H36: 1946.156341 | I36: 1875 | J36: 93 | L36: LED diagnostic | M36: yes | O36: =EEPROM16!O20 -> :00000001FF | S36: =EEPROM8!M19 -> :00000001FF | X36: 93 ;3083rpm | 14° | 1,95ms
B37: 39 | C37: 25.03333333 | D37: 3004 | E37: 55.48158012 | F37: 14 | G37: 1.997336884 | H37: 1997.336884 | I37: 1926 | J37: 96 | X37: 96 ;3004rpm | 14° | 2ms
B38: 40 | C38: 24.40833333 | D38: 2929 | E38: 56.90224195 | F38: 14 | G38: 2.04848071 | H38: 2048.48071 | I38: 1977 | J38: 98 | X38: 98 ;2929rpm | 14° | 2,05ms
B39: 41 | C39: 23.81666667 | D39: 2858 | E39: 58.31583858 | F39: 14 | G39: 2.099370189 | H39: 2099.370189 | I39: 2028 | J39: 101 | X39: 101 ;2858rpm | 14° | 2,1ms
B40: 42 | C40: 23.25 | D40: 2790 | E40: 59.73715651 | F40: 14 | G40: 2.150537634 | H40: 2150.537634 | I40: 2079 | J40: 103 | X40: 103 ;2790rpm | 14° | 2,15ms
B41: 43 | C41: =(2*$M$24*D41)/(60*$M$25) -> 22.70833333 | D41: =INT((60*1000000)/((B41*256)*(1/(1/$M$30)))) -> 2725 | E41: 61.16207951 | F41: 14 | G41: =(E41*($F$5-F41))/1000 -> 2.201834862 | H41: =E41*($F$5-F41) -> 2201.834862 | I41: 2130 | J41: 106 | X41: =CONCATENATE(J41," ;",ROUND(D41,0),"rpm | ",ROUND(F41,1),"° | ",,ROUND(G41,2),"ms ") -> 106 ;2725rpm | 14° | 2,2ms
B42: 44 | C42: 22.19166667 | D42: 2663 | E42: 62.58605583 | F42: 14 | G42: 2.25309801 | H42: 2253.09801 | I42: 2182 | J42: 109 | X42: 109 ;2663rpm | 14° | 2,25ms
B43: 45 | C43: 21.7 | D43: 2604 | E43: 64.00409626 | F43: 14 | G43: 2.304147465 | H43: 2304.147465 | I43: 2233 | J43: 111 | X43: 111 ;2604rpm | 14° | 2,3ms
B44: 46 | C44: 21.225 | D44: 2547 | E44: 65.4364612 | F44: 14 | G44: 2.355712603 | H44: 2355.712603 | I44: 2284 | J44: 114 | X44: 114 ;2547rpm | 14° | 2,36ms
B45: 47 | C45: 20.775 | D45: 2493 | E45: 66.85385747 | F45: 14 | G45: 2.406738869 | H45: 2406.738869 | I45: 2335 | J45: 116 | X45: 116 ;2493rpm | 14° | 2,41ms
B46: 48 | C46: 20.34166667 | D46: 2441 | E46: 68.27802813 | F46: 14 | G46: 2.458009013 | H46: 2458.009013 | I46: 2387 | J46: 119 | X46: 119 ;2441rpm | 14° | 2,46ms
B47: 49 | C47: 19.925 | D47: 2391 | E47: 69.70584135 | F47: 14 | G47: 2.509410289 | H47: 2509.410289 | I47: 2438 | J47: 121 | X47: 121 ;2391rpm | 14° | 2,51ms
B48: 50 | C48: 19.525 | D48: 2343 | E48: 71.13387395 | F48: 14 | G48: 2.560819462 | H48: 2560.819462 | I48: 2489 | J48: 124 | X48: 124 ;2343rpm | 14° | 2,56ms
B49: 51 | C49: 19.14166667 | D49: 2297 | E49: 72.55840952 | F49: 14 | G49: 2.612102743 | H49: 2612.102743 | I49: 2541 | J49: 127 | X49: 127 ;2297rpm | 14° | 2,61ms
B50: 52 | C50: 18.775 | D50: 2253 | E50: 73.97544015 | F50: 14 | G50: 2.663115846 | H50: 2663.115846 | I50: 2592 | J50: 129 | X50: 129 ;2253rpm | 14° | 2,66ms
B51: 53 | C51: 18.425 | D51: 2211 | E51: 75.3806724 | F51: 14 | G51: 2.713704206 | H51: 2713.704206 | I51: 2642 | J51: 132 | X51: 132 ;2211rpm | 14° | 2,71ms
B52: 54 | C52: 18.08333333 | D52: 2170 | E52: 76.80491551 | F52: 14 | G52: 2.764976959 | H52: 2764.976959 | I52: 2693 | J52: 134 | X52: 134 ;2170rpm | 14° | 2,76ms
B53: 55 | C53: 17.75 | D53: 2130 | E53: 78.24726135 | F53: 14 | G53: 2.816901408 | H53: 2816.901408 | I53: 2745 | J53: 137 | X53: 137 ;2130rpm | 14° | 2,82ms
B54: 56 | C54: 17.43333333 | D54: 2092 | E54: 79.66857871 | F54: 14 | G54: 2.868068834 | H54: 2868.068834 | I54: 2797 | J54: 139 | X54: 139 ;2092rpm | 14° | 2,87ms
B55: 57 | C55: 17.125 | D55: 2055 | E55: 81.10300081 | F55: 14 | G55: 2.919708029 | H55: 2919.708029 | I55: 2848 | J55: 142 | X55: 142 ;2055rpm | 14° | 2,92ms
B56: 58 | C56: 16.83333333 | D56: 2020 | E56: 82.50825083 | F56: 14 | G56: 2.97029703 | H56: 2970.29703 | I56: 2899 | J56: 144 | X56: 144 ;2020rpm | 14° | 2,97ms
B57: 59 | C57: 16.55 | D57: 1986 | E57: 83.92077878 | F57: 14 | G57: 3.021148036 | H57: 3021.148036 | I57: 2950 | J57: 147 | X57: 147 ;1986rpm | 14° | 3,02ms
B58: 60 | C58: 16.275 | D58: 1953 | E58: 85.33879502 | F58: 14 | G58: 3.072196621 | H58: 3072.196621 | I58: 3001 | J58: 150 | X58: 150 ;1953rpm | 14° | 3,07ms
B59: 61 | C59: 16.00833333 | D59: 1921 | E59: 86.76036786 | F59: 14 | G59: 3.123373243 | H59: 3123.373243 | I59: 3052 | J59: 152 | X59: 152 ;1921rpm | 14° | 3,12ms
B60: 62 | C60: 15.75 | D60: 1890 | E60: 88.18342152 | F60: 14 | G60: 3.174603175 | H60: 3174.603175 | I60: 3103 | J60: 155 | X60: 155 ;1890rpm | 14° | 3,17ms
B61: 63 | C61: 15.5 | D61: 1860 | E61: 89.60573477 | F61: 14 | G61: 3.225806452 | H61: 3225.806452 | I61: 3154 | J61: 157 | X61: 157 ;1860rpm | 14° | 3,23ms
B62: 64 | C62: 15.25833333 | D62: 1831 | E62: 91.02494083 | F62: 14 | G62: 3.27689787 | H62: 3276.89787 | I62: 3205 | J62: 160 | X62: 160 ;1831rpm | 14° | 3,28ms
B63: 65 | C63: 15.01666667 | D63: 1802 | E63: 92.48982612 | F63: 14 | G63: 3.32963374 | H63: 3329.63374 | I63: 3258 | J63: 162 | X63: 162 ;1802rpm | 14° | 3,33ms
B64: 66 | C64: 14.79166667 | D64: 1775 | E64: 93.89671362 | F64: 14 | G64: 3.38028169 | H64: 3380.28169 | I64: 3309 | J64: 165 | X64: 165 ;1775rpm | 14° | 3,38ms
B65: 67 | C65: 14.575 | D65: 1749 | E65: 95.29254812 | F65: 14 | G65: 3.430531732 | H65: 3430.531732 | I65: 3359 | J65: 167 | X65: 167 ;1749rpm | 14° | 3,43ms
B66: 68 | C66: 14.35833333 | D66: 1723 | E66: 96.7305088 | F66: 14 | G66: 3.482298317 | H66: 3482.298317 | I66: 3411 | J66: 170 | X66: 170 ;1723rpm | 14° | 3,48ms
B67: 69 | C67: 14.15 | D67: 1698 | E67: 98.15469179 | F67: 14 | G67: 3.533568905 | H67: 3533.568905 | I67: 3462 | J67: 173 | X67: 173 ;1698rpm | 14° | 3,53ms
B68: 70 | C68: 13.95 | D68: 1674 | E68: 99.56192752 | F68: 14 | G68: 3.584229391 | H68: 3584.229391 | I68: 3513 | J68: 175 | X68: 175 ;1674rpm | 14° | 3,58ms
B69: 71 | C69: 13.75 | D69: 1650 | E69: 101.010101 | F69: 14 | G69: 3.636363636 | H69: 3636.363636 | I69: 3565 | J69: 178 | X69: 178 ;1650rpm | 14° | 3,64ms
B70: 72 | C70: 13.55833333 | D70: 1627 | E70: 102.438025 | F70: 14 | G70: 3.6877689 | H70: 3687.7689 | I70: 3616 | J70: 180 | X70: 180 ;1627rpm | 14° | 3,69ms
B71: 73 | C71: 13.375 | D71: 1605 | E71: 103.8421599 | F71: 14 | G71: 3.738317757 | H71: 3738.317757 | I71: 3667 | J71: 183 | X71: 183 ;1605rpm | 14° | 3,74ms
B72: 74 | C72: 13.19166667 | D72: 1583 | E72: 105.2853232 | F72: 14 | G72: 3.790271636 | H72: 3790.271636 | I72: 3719 | J72: 185 | X72: 185 ;1583rpm | 14° | 3,79ms
B73: 75 | C73: =(2*$M$24*D73)/(60*$M$25) -> 13.01666667 | D73: =INT((60*1000000)/((B73*256)*(1/(1/$M$30)))) -> 1562 | E73: 106.7008109 | F73: 14 | G73: =(E73*($F$5-F73))/1000 -> 3.841229193 | H73: =E73*($F$5-F73) -> 3841.229193 | I73: 3770 | J73: 188 | K73: =IF($I73/$J$5>255,CONCATENATE("WARNING: Timing will be more then ",F73,"°"),"") ->  | X73: =CONCATENATE(J73," ;",ROUND(D73,0),"rpm | ",ROUND(F73,1),"° | ",,ROUND(G73,2),"ms ") -> 188 ;1562rpm | 14° | 3,84ms
B74: 76 | C74: 12.84166667 | D74: 1541 | E74: =((1000*1000*60)/($M$24*D74))/360 -> 108.1548778 | F74: 14 | G74: 3.8935756 | H74: 3893.5756 | I74: 3822 | J74: =IF($I74/$J$5>255,255,IF($I74>0.01,INT($I74/$J$5),1)) -> 191 | X74: 191 ;1541rpm | 14° | 3,89ms
B75: =IF((B74+1)<(95+$B$9),B74+1,"- End -") -> 77 | C75: 12.675 | D75: 1521 | E75: 109.5770327 | F75: 14 | G75: 3.944773176 | H75: 3944.773176 | I75: =IF($H75>$I$5,INT($H75-$I$5),"out of range") -> 3873 | J75: 193 | X75: 193 ;1521rpm | 14° | 3,94ms
B76: 78 | C76: 12.51666667 | D76: 1502 | E76: 110.9631602 | F76: 14 | G76: 3.994673768 | H76: 3994.673768 | I76: 3923 | J76: 196 | X76: 196 ;1502rpm | 14° | 3,99ms
B77: 79 | C77: 12.35833333 | D77: 1483 | E77: 112.3848056 | F77: 14 | G77: 4.045853001 | H77: 4045.853001 | I77: 3974 | J77: 198 | X77: 198 ;1483rpm | 14° | 4,05ms
B78: 80 | C78: 12.2 | D78: 1464 | E78: 113.8433515 | F78: 14 | G78: 4.098360656 | H78: 4098.360656 | I78: 4027 | J78: 201 | X78: 201 ;1464rpm | 14° | 4,1ms
B79: 81 | C79: 12.05 | D79: 1446 | E79: 115.2604887 | F79: 14 | G79: 4.149377593 | H79: 4149.377593 | I79: 4078 | J79: 203 | X79: 203 ;1446rpm | 14° | 4,15ms
B80: 82 | C80: 11.90833333 | D80: 1429 | E80: 116.6316772 | F80: 14 | G80: 4.198740378 | H80: 4198.740378 | I80: 4127 | J80: 206 | X80: 206 ;1429rpm | 14° | 4,2ms
B81: 83 | C81: 11.75833333 | D81: 1411 | E81: 118.119537 | F81: 14 | G81: 4.252303331 | H81: 4252.303331 | I81: 4181 | J81: 209 | X81: 209 ;1411rpm | 14° | 4,25ms
B82: 84 | C82: 11.625 | D82: 1395 | E82: 119.474313 | F82: 14 | G82: 4.301075269 | H82: 4301.075269 | I82: 4230 | J82: 211 | X82: 211 ;1395rpm | 14° | 4,3ms
B83: 85 | C83: 11.48333333 | D83: 1378 | E83: 120.9482342 | F83: 14 | G83: 4.35413643 | H83: 4354.13643 | I83: 4283 | J83: 214 | X83: 214 ;1378rpm | 14° | 4,35ms
B84: 86 | C84: 11.35 | D84: 1362 | E84: 122.3690651 | F84: 14 | G84: 4.405286344 | H84: 4405.286344 | I84: 4334 | J84: 216 | X84: 216 ;1362rpm | 14° | 4,41ms
B85: 87 | C85: 11.21666667 | D85: 1346 | E85: 123.8236751 | F85: 14 | G85: 4.457652303 | H85: 4457.652303 | I85: 4386 | J85: 219 | X85: 219 ;1346rpm | 14° | 4,46ms
B86: 88 | C86: 11.09166667 | D86: 1331 | E86: 125.2191335 | F86: 14 | G86: 4.507888805 | H86: 4507.888805 | I86: 4436 | J86: 221 | X86: 221 ;1331rpm | 14° | 4,51ms
B87: 89 | C87: 10.96666667 | D87: 1316 | E87: 126.6464032 | F87: 14 | G87: 4.559270517 | H87: 4559.270517 | I87: 4488 | J87: 224 | X87: 224 ;1316rpm | 14° | 4,56ms
B88: 90 | C88: 10.85 | D88: 1302 | E88: 128.0081925 | F88: 14 | G88: 4.608294931 | H88: 4608.294931 | I88: 4537 | J88: 226 | X88: 226 ;1302rpm | 14° | 4,61ms
B89: 91 | C89: 10.725 | D89: 1287 | E89: 129.5001295 | F89: 14 | G89: 4.662004662 | H89: 4662.004662 | I89: 4591 | J89: 229 | X89: 229 ;1287rpm | 14° | 4,66ms
B90: 92 | C90: 10.60833333 | D90: 1273 | E90: 130.9243257 | F90: 14 | G90: 4.713275727 | H90: 4713.275727 | I90: 4642 | J90: 232 | X90: 232 ;1273rpm | 14° | 4,71ms
B91: 93 | C91: 10.5 | D91: 1260 | E91: 132.2751323 | F91: 14 | G91: 4.761904762 | H91: 4761.904762 | I91: 4690 | J91: 234 | X91: 234 ;1260rpm | 14° | 4,76ms
B92: 94 | C92: 10.38333333 | D92: 1246 | E92: 133.7613697 | F92: 14 | G92: 4.81540931 | H92: 4815.40931 | I92: 4744 | J92: 237 | X92: 237 ;1246rpm | 14° | 4,82ms
B93: 95 | C93: 10.275 | D93: 1233 | E93: 135.171668 | F93: 14 | G93: 4.866180049 | H93: 4866.180049 | I93: 4795 | J93: 239 | X93: 239 ;1233rpm | 14° | 4,87ms
B94: 96 | C94: 10.16666667 | D94: 1220 | E94: 136.6120219 | F94: 14 | G94: 4.918032787 | H94: 4918.032787 | I94: 4847 | J94: 242 | X94: 242 ;1220rpm | 14° | 4,92ms
B95: 97 | C95: 10.06666667 | D95: 1208 | E95: 137.9690949 | F95: 14 | G95: 4.966887417 | H95: 4966.887417 | I95: 4895 | J95: 244 | X95: 244 ;1208rpm | 14° | 4,97ms
B96: 98 | C96: 9.958333333 | D96: 1195 | E96: 139.4700139 | F96: 14 | G96: 5.020920502 | H96: 5020.920502 | I96: 4949 | J96: 247 | X96: 247 ;1195rpm | 14° | 5,02ms
B97: 99 | C97: 9.858333333 | D97: 1183 | E97: 140.8847563 | F97: 14 | G97: 5.071851226 | H97: 5071.851226 | I97: 5000 | J97: 250 | X97: 250 ;1183rpm | 14° | 5,07ms
B98: 100 | C98: 9.758333333 | D98: 1171 | E98: 142.3284942 | F98: 14 | G98: 5.12382579 | H98: 5123.82579 | I98: 5052 | J98: 252 | X98: 252 ;1171rpm | 14° | 5,12ms
B99: 101 | C99: 9.666666667 | D99: 1160 | E99: 143.6781609 | F99: 14 | G99: 5.172413793 | H99: 5172.413793 | I99: 5101 | J99: 255 | K99: WARNING: Timing will be more then 14° | X99: 255 ;1160rpm | 14° | 5,17ms
B100: 102 | C100: 9.566666667 | D100: 1148 | E100: 145.1800232 | F100: 14 | G100: 5.226480836 | H100: 5226.480836 | I100: 5155 | J100: 255 | K100: WARNING: Timing will be more then 14° | X100: 255 ;1148rpm | 14° | 5,23ms
B101: 103 | C101: 9.475 | D101: 1137 | E101: 146.5845793 | F101: 14 | G101: 5.277044855 | H101: 5277.044855 | I101: 5206 | J101: 255 | K101: WARNING: Timing will be more then 14° | X101: 255 ;1137rpm | 14° | 5,28ms
B102: 104 | C102: 9.383333333 | D102: 1126 | E102: 148.0165779 | F102: 14 | G102: 5.328596803 | H102: 5328.596803 | I102: 5257 | J102: 255 | K102: WARNING: Timing will be more then 14° | X102: 255 ;1126rpm | 14° | 5,33ms
B103: 105 | C103: 9.3 | D103: 1116 | E103: 149.3428913 | F103: 14 | G103: 5.376344086 | H103: 5376.344086 | I103: 5305 | J103: 255 | K103: =IF($I103/$J$5>255,CONCATENATE("WARNING: Timing will be more then ",F103,"°"),"") -> WARNING: Timing will be more then 14° | X103: 255 ;1116rpm | 14° | 5,38ms
X104: ;0rpm | 0° | 0ms

Sheet advance_at_lowRPM
G1: delay = | I1: 4.4 | J1: us
B2: Advance at low RPM | D2: =CONCATENATE("from ",X7," to") -> from 960 to | E2: =CONCATENATE(ROUNDDOWN(Advance_curve!D103,0)," RPM") -> 1116 RPM | H2: multiplier | I2: 15 | O2: =Advance_curve!$F$5 -> 50 | P2: pickup pos
O3: =Advance_curve!$B9 -> 11 | P3: tmr count min
H4: Prescaler = | I4: =Advance_curve!M30 -> 2 | U4: =IF(Q8<255,"=(360000/P8)*T8",0) -> 0
H5: Cylinder(s) = | I5: =Advance_curve!M24 -> 1
H6: Strokes = | I6: =Advance_curve!M25 -> 4 | N6: Frq | O6: RPM | P6: periode | Q6: timer1h | R6: Delay | S6: 1° | T6: Avance | U6: Avance | X6: mini:
H7: RPM mini = | I7: =IF(Advance_curve!M30=1,"336",IF(Advance_curve!M30=2,"168",IF(Advance_curve!M30=4,"84",IF(Advance_curve!M30=8,"42","False")))) -> 168 | N7: Hz | P7: µs | R7: µs | S7: us | T7: degres | U7: degres | X7: =MIN(X8:X49) -> 960
N8: 1 | O8: =IF(N8="End"," ",(N8*60*$I$6)/(2*$I$5)) -> 120 | P8: =1000000/N8 -> 1000000 | Q8: =IF(N8="End"," ",INT(P8/($I$4*255))) -> 1960 | R8: =($I$1 *$Q8*$I$2) -> 129360 | S8: =P8/360 -> 2777.777778 | T8: =R8/S8 -> 46.5696 | U8: =IF($Q8<255,Advance_curve!$F$5-T8,"0") -> 0 | V8: =IF($Q8<255," ","TMR1h>255") -> TMR1h>255 | X8: =IF($Q8<255,O8," ") -> 
N9: =IF(N8<Advance_curve!$C$103,N8+1,"End") -> 2 | O9: 240 | P9: =1000000/N9 -> 500000 | Q9: 980 | R9: =($I$1 *$Q9*$I$2) -> 64680 | S9: =P9/360 -> 1388.888889 | T9: =R9/S9 -> 46.5696 | U9: =IF($Q9<255,Advance_curve!$F$5-T9,"0") -> 0 | V9: =IF($Q9<255," ","TMR1h>255") -> TMR1h>255
N10: =IF(N9<Advance_curve!$C$103,N9+1,"End") -> 3 | O10: 360 | P10: 333333.3333 | Q10: 653 | R10: 43098 | S10: 925.9259259 | T10: 46.54584 | U10: =IF($Q10<255,Advance_curve!$F$5-T10,"0") -> 0 | V10: TMR1h>255
N11: =IF(N10<Advance_curve!$C$103,N10+1,"End") -> 4 | O11: 480 | P11: 250000 | Q11: 490 | R11: 32340 | S11: 694.4444444 | T11: 46.5696 | U11: =IF($Q11<255,Advance_curve!$F$5-T11,"0") -> 0 | V11: TMR1h>255
N12: =IF(N11<Advance_curve!$C$103,N11+1,"End") -> 5 | O12: 600 | P12: 200000 | Q12: 392 | R12: 25872 | S12: 555.5555556 | T12: 46.5696 | U12: =IF($Q12<255,Advance_curve!$F$5-T12,"0") -> 0 | V12: TMR1h>255
N13: =IF(N12<Advance_curve!$C$103,N12+1,"End") -> 6 | O13: 720 | P13: 166666.6667 | Q13: 326 | R13: 21516 | S13: 462.962963 | T13: 46.47456 | U13: =IF($Q13<255,Advance_curve!$F$5-T13,"0") -> 0 | V13: TMR1h>255
N14: =IF(N13<Advance_curve!$C$103,N13+1,"End") -> 7 | O14: 840 | P14: 142857.1429 | Q14: 280 | R14: 18480 | S14: 396.8253968 | T14: 46.5696 | U14: =IF($Q14<255,Advance_curve!$F$5-T14,"0") -> 0 | V14: TMR1h>255 | X14: =IF($Q14<255,O14," ") -> 
N15: =IF(N14<Advance_curve!$C$103,N14+1,"End") -> 8 | O15: 960 | P15: 125000 | Q15: 245 | R15: 16170 | S15: 347.2222222 | T15: 46.5696 | U15: =IF($Q15<255,Advance_curve!$F$5-T15,"0") -> 3.4304 | X15: =IF($Q15<255,O15," ") -> 960
N16: =IF(N15<Advance_curve!$C$103,N15+1,"End") -> 9 | O16: 1080 | P16: 111111.1111 | Q16: 217 | R16: 14322 | S16: 308.6419753 | T16: 46.40328 | U16: =IF($Q16<255,Advance_curve!$F$5-T16,"0") -> 3.59672 | X16: 1080
L17: <= avance | N17: =IF(N16<Advance_curve!$C$103,N16+1,"End") -> 10 | O17: 1200 | P17: 100000 | Q17: 196 | R17: 12936 | S17: 277.7777778 | T17: 46.5696 | U17: =IF($Q17<255,Advance_curve!$F$5-T17,"0") -> 3.4304 | X17: 1200
N18: =IF(N17<Advance_curve!$C$103,N17+1,"End") -> End | U18: =IF($Q18<255,Advance_curve!$F$5-T18,"0") -> 0 | V18: TMR1h>255
N19: =IF(N18<Advance_curve!$C$103,N18+1,"End") -> End | U19: =IF($Q19<255,Advance_curve!$F$5-T19,"0") -> 0 | V19: TMR1h>255
N20: =IF(N19<Advance_curve!$C$103,N19+1,"End") -> End | U20: =IF($Q20<255,Advance_curve!$F$5-T20,"0") -> 0 | V20: TMR1h>255
L21: TDC | N21: =IF(N20<Advance_curve!$C$103,N20+1,"End") -> End | U21: =IF($Q21<255,Advance_curve!$F$5-T21,"0") -> 0 | V21: TMR1h>255
N22: =IF(N21<Advance_curve!$C$103,N21+1,"End") -> End | U22: =IF($Q22<255,Advance_curve!$F$5-T22,"0") -> 0 | V22: TMR1h>255
N23: =IF(N22<Advance_curve!$C$103,N22+1,"End") -> End | U23: =IF($Q23<255,Advance_curve!$F$5-T23,"0") -> 0 | V23: TMR1h>255
N24: =IF(N23<Advance_curve!$C$103,N23+1,"End") -> End | U24: =IF($Q24<255,Advance_curve!$F$5-T24,"0") -> 0 | V24: TMR1h>255
L25: <= retard | N25: =IF(N24<Advance_curve!$C$103,N24+1,"End") -> End | U25: =IF($Q25<255,Advance_curve!$F$5-T25,"0") -> 0 | V25: TMR1h>255
N26: =IF(N25<Advance_curve!$C$103,N25+1,"End") -> End | O26: =IF(N26="End"," ",(N26*60*$I$6)/(2*$I$5)) ->  | Q26: =IF(N26="End"," ",INT(P26/($I$4*255))) ->  | U26: =IF($Q26<255,Advance_curve!$F$5-T26,"0") -> 0 | V26: TMR1h>255
N27: =IF(N26<Advance_curve!$C$103,N26+1,"End") -> End | O27: =IF(N27="End"," ",(N27*60*$I$6)/(2*$I$5)) ->  | P27: =IF(N27<>"End",(1000000/N27),#N/A) ->  | Q27: =IF(N27="End"," ",INT(P27/($I$4*255))) ->  | U27: =IF($Q27<255,Advance_curve!$F$5-T27,"0") -> 0 | V27: TMR1h>255
N28: =IF(N27<Advance_curve!$C$103,N27+1,"End") -> End | P28: =IF(N28<>"End",(1000000/N28),#N/A) ->  | Q28: =IF(N28="End"," ",INT(P28/($I$4*255))) ->  | U28: =IF($Q28<255,Advance_curve!$F$5-T28,"0") -> 0 | V28: TMR1h>255
N29: =IF(N28<Advance_curve!$C$103,N28+1,"End") -> End | U29: =IF($Q29<255,Advance_curve!$F$5-T29,"0") -> 0 | V29: TMR1h>255
N30: =IF(N29<Advance_curve!$C$103,N29+1,"End") -> End | U30: =IF($Q30<255,Advance_curve!$F$5-T30,"0") -> 0 | V30: TMR1h>255
N31: =IF(N30<Advance_curve!$C$103,N30+1,"End") -> End | U31: =IF($Q31<255,Advance_curve!$F$5-T31,"0") -> 0 | V31: TMR1h>255
N32: =IF(N31<Advance_curve!$C$103,N31+1,"End") -> End | U32: =IF($Q32<255,Advance_curve!$F$5-T32,"0") -> 0 | V32: TMR1h>255
N33: =IF(N32<Advance_curve!$C$103,N32+1,"End") -> End | U33: =IF($Q33<255,Advance_curve!$F$5-T33,"0") -> 0 | V33: TMR1h>255
N34: =IF(N33<Advance_curve!$C$103,N33+1,"End") -> End | U34: =IF($Q34<255,Advance_curve!$F$5-T34,"0") -> 0 | V34: TMR1h>255
N35: =IF(N34<Advance_curve!$C$103,N34+1,"End") -> End | U35: =IF($Q35<255,Advance_curve!$F$5-T35,"0") -> 0 | V35: TMR1h>255
N36: =IF(N35<Advance_curve!$C$103,N35+1,"End") -> End | U36: =IF($Q36<255,Advance_curve!$F$5-T36,"0") -> 0 | V36: TMR1h>255
N37: =IF(N36<Advance_curve!$C$103,N36+1,"End") -> End | U37: =IF($Q37<255,Advance_curve!$F$5-T37,"0") -> 0 | V37: TMR1h>255
N38: =IF(N37<Advance_curve!$C$103,N37+1,"End") -> End | U38: =IF($Q38<255,Advance_curve!$F$5-T38,"0") -> 0 | V38: TMR1h>255
N39: =IF(N38<Advance_curve!$C$103,N38+1,"End") -> End | U39: =IF($Q39<255,Advance_curve!$F$5-T39,"0") -> 0 | V39: TMR1h>255
N40: =IF(N39<Advance_curve!$C$103,N39+1,"End") -> End | U40: =IF($Q40<255,Advance_curve!$F$5-T40,"0") -> 0 | V40: TMR1h>255
N41: =IF(N40<Advance_curve!$C$103,N40+1,"End") -> End | U41: =IF($Q41<255,Advance_curve!$F$5-T41,"0") -> 0 | V41: TMR1h>255
N42: =IF(N41<Advance_curve!$C$103,N41+1,"End") -> End | U42: =IF($Q42<255,Advance_curve!$F$5-T42,"0") -> 0 | V42: TMR1h>255
N43: =IF(N42<Advance_curve!$C$103,N42+1,"End") -> End | U43: =IF($Q43<255,Advance_curve!$F$5-T43,"0") -> 0 | V43: TMR1h>255
N44: =IF(N43<Advance_curve!$C$103,N43+1,"End") -> End | U44: =IF($Q44<255,Advance_curve!$F$5-T44,"0") -> 0 | V44: TMR1h>255
N45: =IF(N44<Advance_curve!$C$103,N44+1,"End") -> End | U45: =IF($Q45<255,Advance_curve!$F$5-T45,"0") -> 0 | V45: TMR1h>255
N46: =IF(N45<Advance_curve!$C$103,N45+1,"End") -> End | U46: =IF($Q46<255,Advance_curve!$F$5-T46,"0") -> 0 | V46: TMR1h>255
N47: =IF(N46<Advance_curve!$C$103,N46+1,"End") -> End | U47: =IF($Q47<255,Advance_curve!$F$5-T47,"0") -> 0 | V47: TMR1h>255
N48: =IF(N47<Advance_curve!$C$103,N47+1,"End") -> End | U48: =IF($Q48<255,Advance_curve!$F$5-T48,"0") -> 0 | V48: TMR1h>255
N49: =IF(N48<Advance_curve!$C$103,N48+1,"End") -> End | U49: =IF($Q49<255,Advance_curve!$F$5-T49,"0") -> 0 | V49: TMR1h>255

Sheet VeryLowRPM
B2: =CONCATENATE("Advance from ",E9," to ",advance_at_lowRPM!X7," RPM") -> Advance from 91 to 960 RPM
G3: Si une periode entre 2 pkp fait 131ms pour 360°
B4: Prescaler | C4: =Advance_curve!M30 -> 2 | G4: alors 50° (pkp position) sont parcourus en 131/360*50 = 18ms
B5: clock | C5: 4 | G5: Si on attend 18ms x TMR1DEB on spark pile au TDC.
B6: periode TMR1L | C6: =4*C4/C5 -> 2 | E6: 5 | F6: debords max
B7: TMR1 | C7: =65536*C6/1000 -> 131.072 | D7: ms | E7: =E6*C7 -> 655.36 | F7: ms
B8: pkp position | C8: =Advance_curve!F5 -> 50 | D8: deg | E8: =1000/E7 -> 1.525878906 | F8: Hz
B9: Time from pickup position to TDC | C9: =(C7/360)*C8 -> 18.20444444 | D9: ms | E9: =INT(60*E8) -> 91 | F9: rpm

Sheet EEPROM8
M1: INTEL 8HEX format | O1: RAW format | Z1: MCH Format
A2: Address (hex) | B2: Bytes in Row | C2: Address Start (dec) | D2: +0 | E2: +1 | F2: +2 | G2: +3 | H2: +4 | I2: +5 | J2: +6 | K2: +7 | M2: :020000040000FA | Q2: sum[dec] | R2: sum[hex] | S2: LSB | T2: two's complement [dec] | U2: two's complement +1 | V2: cksum
A3: =DEC2HEX(C3,4) -> 0000 | B3: 8 | C3: 0 | D3: =Advance_curve!J9 -> 27 | E3: =Advance_curve!J10 -> 29 | F3: =Advance_curve!J11 -> 31 | G3: =Advance_curve!J12 -> 33 | H3: =Advance_curve!J13 -> 34 | I3: =Advance_curve!J14 -> 37 | J3: =Advance_curve!J15 -> 39 | K3: =Advance_curve!J16 -> 42 | M3: =":"&DEC2HEX(B3,2)&DEC2HEX(C3,4)&"00"&DEC2HEX(D3,2)&DEC2HEX(E3,2)&DEC2HEX(F3,2)&DEC2HEX(G3,2)&DEC2HEX(H3,2)&DEC2HEX(I3,2)&DEC2HEX(J3,2)&DEC2HEX(K3,2)&V3 -> :080000001B1D1F212225272AE8 | O3: =DEC2HEX(D3,2)&" "&DEC2HEX(E3,2)&" "&DEC2HEX(F3,2)&" "&DEC2HEX(G3,2)&" "&DEC2HEX(H3,2)&" "&DEC2HEX(I3,2)&" "&DEC2HEX(J3,2)&" "&DEC2HEX(K3,2) -> 1B 1D 1F 21 22 25 27 2A | Q3: =SUM(B3:K3) -> 280 | R3: =DEC2HEX(Q3) -> 118 | S3: =RIGHT(R3,2) -> 18 | T3: =255-HEX2DEC(S3) -> 231 | U3: =T3+1 -> 232 | V3: =IF(U3=256,"00",DEC2HEX(U3,2)) -> E8 | Z3: =DEC2HEX(D3,2) -> 1B
A4: 0008 | B4: 8 | C4: 8 | D4: =Advance_curve!J17 -> 45 | E4: =Advance_curve!J18 -> 47 | F4: =Advance_curve!J19 -> 50 | G4: =Advance_curve!J20 -> 52 | H4: =Advance_curve!J21 -> 55 | I4: =Advance_curve!J22 -> 57 | J4: =Advance_curve!J23 -> 60 | K4: =Advance_curve!J24 -> 63 | M4: =":"&DEC2HEX(B4,2)&DEC2HEX(C4,4)&"00"&DEC2HEX(D4,2)&DEC2HEX(E4,2)&DEC2HEX(F4,2)&DEC2HEX(G4,2)&DEC2HEX(H4,2)&DEC2HEX(I4,2)&DEC2HEX(J4,2)&DEC2HEX(K4,2)&V4 -> :080008002D2F323437393C3F43 | O4: =DEC2HEX(D4,2)&" "&DEC2HEX(E4,2)&" "&DEC2HEX(F4,2)&" "&DEC2HEX(G4,2)&" "&DEC2HEX(H4,2)&" "&DEC2HEX(I4,2)&" "&DEC2HEX(J4,2)&" "&DEC2HEX(K4,2) -> 2D 2F 32 34 37 39 3C 3F | Q4: =SUM(B4:K4) -> 445 | R4: =DEC2HEX(Q4) -> 1BD | S4: =RIGHT(R4,2) -> BD | T4: =255-HEX2DEC(S4) -> 66 | U4: =T4+1 -> 67 | V4: 43 | Z4: =DEC2HEX(E3,2) -> 1D
A5: 0010 | B5: 8 | C5: 16 | D5: =Advance_curve!J25 -> 65 | E5: =Advance_curve!J26 -> 68 | F5: =Advance_curve!J27 -> 70 | G5: =Advance_curve!J28 -> 73 | H5: =Advance_curve!J29 -> 75 | I5: =Advance_curve!J30 -> 78 | J5: =Advance_curve!J31 -> 80 | K5: =Advance_curve!J32 -> 83 | M5: =":"&DEC2HEX(B5,2)&DEC2HEX(C5,4)&"00"&DEC2HEX(D5,2)&DEC2HEX(E5,2)&DEC2HEX(F5,2)&DEC2HEX(G5,2)&DEC2HEX(H5,2)&DEC2HEX(I5,2)&DEC2HEX(J5,2)&DEC2HEX(K5,2)&V5 -> :08001000414446494B4E505398 | O5: 41 44 46 49 4B 4E 50 53 | Q5: 616 | R5: 268 | S5: 68 | T5: 151 | U5: 152 | V5: 98 | Z5: =DEC2HEX(F3,2) -> 1F
A6: 0018 | B6: 8 | C6: 24 | D6: =Advance_curve!J33 -> 86 | E6: =Advance_curve!J34 -> 88 | F6: =Advance_curve!J35 -> 91 | G6: =Advance_curve!J36 -> 93 | H6: =Advance_curve!J37 -> 96 | I6: =Advance_curve!J38 -> 98 | J6: =Advance_curve!J39 -> 101 | K6: =Advance_curve!J40 -> 103 | M6: :0800180056585B5D60626567EC | O6: 56 58 5B 5D 60 62 65 67 | Q6: 788 | R6: 314 | S6: 14 | T6: 235 | U6: 236 | V6: EC | Z6: =DEC2HEX(G3,2) -> 21
A7: 0020 | B7: 8 | C7: 32 | D7: =Advance_curve!J41 -> 106 | E7: =Advance_curve!J42 -> 109 | F7: =Advance_curve!J43 -> 111 | G7: =Advance_curve!J44 -> 114 | H7: =Advance_curve!J45 -> 116 | I7: =Advance_curve!J46 -> 119 | J7: =Advance_curve!J47 -> 121 | K7: =Advance_curve!J48 -> 124 | M7: :080020006A6D6F727477797C40 | O7: 6A 6D 6F 72 74 77 79 7C | Q7: 960 | R7: 3C0 | S7: C0 | T7: 63 | U7: 64 | V7: 40 | Z7: =DEC2HEX(H3,2) -> 22
A8: 0028 | B8: 8 | C8: 40 | D8: =Advance_curve!J49 -> 127 | E8: =Advance_curve!J50 -> 129 | F8: =Advance_curve!J51 -> 132 | G8: =Advance_curve!J52 -> 134 | H8: =Advance_curve!J53 -> 137 | I8: =Advance_curve!J54 -> 139 | J8: =Advance_curve!J55 -> 142 | K8: =Advance_curve!J56 -> 144 | M8: :080028007F818486898B8E9094 | O8: 7F 81 84 86 89 8B 8E 90 | Q8: 1132 | R8: 46C | S8: 6C | T8: 147 | U8: 148 | V8: 94 | Z8: =DEC2HEX(I3,2) -> 25
A9: 0030 | B9: 8 | C9: 48 | D9: =Advance_curve!J57 -> 147 | E9: =Advance_curve!J58 -> 150 | F9: =Advance_curve!J59 -> 152 | G9: =Advance_curve!J60 -> 155 | H9: =Advance_curve!J61 -> 157 | I9: =Advance_curve!J62 -> 160 | J9: =Advance_curve!J63 -> 162 | K9: =Advance_curve!J64 -> 165 | M9: :080030009396989B9DA0A2A5E8 | O9: 93 96 98 9B 9D A0 A2 A5 | Q9: 1304 | R9: 518 | S9: 18 | T9: 231 | U9: 232 | V9: E8 | Z9: =DEC2HEX(J3,2) -> 27
A10: 0038 | B10: 8 | C10: 56 | D10: =Advance_curve!J65 -> 167 | E10: =Advance_curve!J66 -> 170 | F10: =Advance_curve!J67 -> 173 | G10: =Advance_curve!J68 -> 175 | H10: =Advance_curve!J69 -> 178 | I10: =Advance_curve!J70 -> 180 | J10: =Advance_curve!J71 -> 183 | K10: =Advance_curve!J72 -> 185 | M10: :08003800A7AAADAFB2B4B7B93D | O10: A7 AA AD AF B2 B4 B7 B9 | Q10: 1475 | R10: 5C3 | S10: C3 | T10: 60 | U10: 61 | V10: 3D | Z10: =DEC2HEX(K3,2) -> 2A
A11: 0040 | B11: 8 | C11: 64 | D11: =Advance_curve!J73 -> 188 | E11: =Advance_curve!J74 -> 191 | F11: =Advance_curve!J75 -> 193 | G11: =Advance_curve!J76 -> 196 | H11: =Advance_curve!J77 -> 198 | I11: =Advance_curve!J78 -> 201 | J11: =Advance_curve!J79 -> 203 | K11: =Advance_curve!J80 -> 206 | M11: :08004000BCBFC1C4C6C9CBCE90 | O11: BC BF C1 C4 C6 C9 CB CE | Q11: 1648 | R11: 670 | S11: 70 | T11: 143 | U11: 144 | V11: 90 | Z11: =DEC2HEX(D4,2) -> 2D
A12: 0048 | B12: 8 | C12: 72 | D12: =Advance_curve!J81 -> 209 | E12: =Advance_curve!J82 -> 211 | F12: =Advance_curve!J83 -> 214 | G12: =Advance_curve!J84 -> 216 | H12: =Advance_curve!J85 -> 219 | I12: =Advance_curve!J86 -> 221 | J12: =Advance_curve!J87 -> 224 | K12: =Advance_curve!J88 -> 226 | M12: :08004800D1D3D6D8DBDDE0E2E4 | O12: D1 D3 D6 D8 DB DD E0 E2 | Q12: 1820 | R12: 71C | S12: 1C | T12: 227 | U12: 228 | V12: =IF(U12=256,"00",DEC2HEX(U12,2)) -> E4 | Z12: =DEC2HEX(E4,2) -> 2F
A13: =DEC2HEX(C13,4) -> 0050 | B13: 8 | C13: 80 | D13: =Advance_curve!J89 -> 229 | E13: =Advance_curve!J90 -> 232 | F13: =Advance_curve!J91 -> 234 | G13: =Advance_curve!J92 -> 237 | H13: =Advance_curve!J93 -> 239 | I13: =Advance_curve!J94 -> 242 | J13: =Advance_curve!J95 -> 244 | K13: =Advance_curve!J96 -> 247 | M13: :08005000E5E8EAEDEFF2F4F738 | O13: E5 E8 EA ED EF F2 F4 F7 | Q13: 1992 | R13: 7C8 | S13: C8 | T13: 55 | U13: 56 | V13: =IF(U13=256,"00",DEC2HEX(U13,2)) -> 38 | Z13: =DEC2HEX(F4,2) -> 32
A14: 0058 | B14: 8 | C14: 88 | D14: =Advance_curve!J97 -> 250 | E14: =Advance_curve!J98 -> 252 | F14: =Advance_curve!J99 -> 255 | G14: =Advance_curve!J100 -> 255 | H14: =Advance_curve!J101 -> 255 | I14: =Advance_curve!J102 -> 255 | J14: =Advance_curve!J103 -> 255 | K14: 0 | M14: :08005800FAFCFFFFFFFFFF00AF | O14: FA FC FF FF FF FF FF 00 | Q14: 1873 | R14: 751 | S14: 51 | T14: 174 | U14: 175 | V14: AF | Z14: =DEC2HEX(G4,2) -> 34
A15: =DEC2HEX(C15,4) -> 0060 | B15: 8 | C15: 96 | D15: 0 | E15: 0 | F15: 0 | G15: 0 | H15: 0 | I15: 0 | J15: 0 | K15: 0 | M15: :08006000000000000000000098 | O15: 00 00 00 00 00 00 00 00 | Q15: 104 | R15: 68 | S15: 68 | T15: 151 | U15: 152 | V15: 98 | Z15: =DEC2HEX(H4,2) -> 37
A16: 0068 | B16: 8 | C16: 104 | D16: 0 | E16: 0 | F16: 0 | G16: 0 | H16: 0 | I16: 0 | J16: 0 | K16: 0 | M16: :08006800000000000000000090 | O16: 00 00 00 00 00 00 00 00 | Q16: =SUM(B16:K16) -> 112 | R16: 70 | S16: 70 | T16: 143 | U16: 144 | V16: 90 | Z16: =DEC2HEX(I4,2) -> 39
A17: 0070 | B17: 8 | C17: 112 | D17: =Advance_curve!I1 -> 79 | E17: =Advance_curve!J1 -> 20 | F17: =Advance_curve!K1 -> 2 | G17: =Advance_curve!F5 -> 50 | H17: 20 | I17: 20 | J17: 20 | K17: =Advance_curve!$M$35 -> 1 | M17: =":"&DEC2HEX(B17,2)&DEC2HEX(C17,4)&"00"&DEC2HEX(D17,2)&DEC2HEX(E17,2)&DEC2HEX(F17,2)&DEC2HEX(G17,2)&DEC2HEX(H17,2)&DEC2HEX(I17,2)&DEC2HEX(J17,2)&DEC2HEX(K17,2)&V17 -> :080070004F14023214141401B4 | O17: =DEC2HEX(D17,2)&" "&DEC2HEX(E17,2)&" "&DEC2HEX(F17,2)&" "&DEC2HEX(G17,2)&" "&DEC2HEX(H17,2)&" "&DEC2HEX(I17,2)&" "&DEC2HEX(J17,2)&" "&DEC2HEX(K17,2) -> 4F 14 02 32 14 14 14 01 | Q17: 332 | R17: 14C | S17: 4C | T17: 179 | U17: 180 | V17: B4 | Z17: =DEC2HEX(J4,2) -> 3C
A18: 0078 | B18: 8 | C18: 120 | D18: =VeryLowRPM!C9 -> 18.20444444 | E18: =INT((1/Advance_curve!$M$30)*(60*1000000)/Advance_curve!$M$34)/256 -> 12 | F18: =IF(Advance_curve!M32="Auto",99,Advance_curve!M32/ 500) -> 99 | G18: =Advance_curve!M30 -> 2 | H18: =advance_at_lowRPM!I2 -> 15 | I18: =Advance_curve!J5 -> 20 | J18: =Advance_curve!$B$9 -> 11 | K18: =Advance_curve!$B$103 -> 105 | M18: =":"&DEC2HEX(B18,2)&DEC2HEX(C18,4)&"00"&DEC2HEX(D18,2)&DEC2HEX(E18,2)&DEC2HEX(F18,2)&DEC2HEX(G18,2)&DEC2HEX(H18,2)&DEC2HEX(I18,2)&DEC2HEX(J18,2)&DEC2HEX(K18,2)&V18 -> :08007800120C63020F140B6966 | O18: =DEC2HEX(D18,2)&" "&DEC2HEX(E18,2)&" "&DEC2HEX(F18,2)&" "&DEC2HEX(G18,2)&" "&DEC2HEX(H18,2)&" "&DEC2HEX(I18,2)&" "&DEC2HEX(J18,2)&" "&DEC2HEX(K18,2) -> 12 0C 63 02 0F 14 0B 69 | Q18: 410.2044444 | R18: 19A | S18: 9A | T18: 101 | U18: 102 | V18: 66 | Z18: =DEC2HEX(K4,2) -> 3F
D19: End of File | M19: :00000001FF | Z19: =DEC2HEX(D5,2) -> 41
Z20: =DEC2HEX(E5,2) -> 44
M21: The checksum value is the two's complement of the least significant byte (LSB) of the sum of all decoded byte values in the record that precede the checksum. | Z21: =DEC2HEX(F5,2) -> 46
M22: It is computed by summing the decoded byte values, extracting the LSB of the sum, and calculating the two's complement of the LSB | Z22: =DEC2HEX(G5,2) -> 49
M23: (e.g., by inverting its bits and adding one). | Z23: =DEC2HEX(H5,2) -> 4B
M24: For example, in the case of the record :0300300002337A1E, the sum of the decoded byte values is 03 + 00 + 30 + 00 + 02 + 33 + 7A = E2. | Z24: =DEC2HEX(I5,2) -> 4E
M25: The two's complement of E2 is 1E, which is the checksum appearing at the end of the record. | Z25: =DEC2HEX(J5,2) -> 50
Z26: =DEC2HEX(K5,2) -> 53
M27: Pour effectuer un complément à 2 il faut : | Z27: =DEC2HEX(D6,2) -> 56
M28: - Inverser tout les bits (1 en 0, 0 en 1) (ou faire 255-chiffre) Ex: DECHEX(255-SOMME(B3:K3)+1) = DECHEX(255+1-SOMME(B3:K3)) = DECHEX(256-SOMME(B3:K3)) | Z28: =DEC2HEX(E6,2) -> 58
M29: puis ajouter 1 au résultat | Z29: =DEC2HEX(F6,2) -> 5B
M30: le complement a 2 de 0 est egal a 0 | Z30: =DEC2HEX(G6,2) -> 5D
M31: Si 2 derniers chiffres de h100 = 00: cksum OK | Z31: =DEC2HEX(H6,2) -> 60
Z32: =DEC2HEX(I6,2) -> 62
Z33: =DEC2HEX(J6,2) -> 65
M34: Méthode 1 (1er onglet) | Z34: =DEC2HEX(K6,2) -> 67
M35: C'est la méthode bestiale. On convertit le nombre (positif) en base 2, puis on inverse les bits et ensuite on ajoute 1 avec propagation d'une éventuelle retenue. | Z35: =DEC2HEX(D7,2) -> 6A
Z36: =DEC2HEX(E7,2) -> 6D
M37: Méthode 2 (2ème onglet) | Z37: =DEC2HEX(F7,2) -> 6F
M38: On utilise la formule suivante pour le complément à 2: Si X est le nombre négatif à convertir, la conversion de (2^16)-|X| en base 2 donne le résultat. | Z38: =DEC2HEX(G7,2) -> 72
Z39: =DEC2HEX(H7,2) -> 74
Z40: =DEC2HEX(I7,2) -> 77
Z41: =DEC2HEX(J7,2) -> 79
Z42: =DEC2HEX(K7,2) -> 7C
Z43: =DEC2HEX(D8,2) -> 7F
Z44: =DEC2HEX(E8,2) -> 81
Z45: =DEC2HEX(F8,2) -> 84
Z46: =DEC2HEX(G8,2) -> 86
Z47: =DEC2HEX(H8,2) -> 89
Z48: =DEC2HEX(I8,2) -> 8B
Z49: =DEC2HEX(J8,2) -> 8E
Z50: =DEC2HEX(K8,2) -> 90
Z51: =DEC2HEX(D9,2) -> 93
Z52: =DEC2HEX(E9,2) -> 96
Z53: =DEC2HEX(F9,2) -> 98
Z54: =DEC2HEX(G9,2) -> 9B
Z55: =DEC2HEX(H9,2) -> 9D
Z56: =DEC2HEX(I9,2) -> A0
Z57: =DEC2HEX(J9,2) -> A2
Z58: =DEC2HEX(K9,2) -> A5
Z59: =DEC2HEX(D10,2) -> A7
Z60: =DEC2HEX(E10,2) -> AA
Z61: =DEC2HEX(F10,2) -> AD
Z62: =DEC2HEX(G10,2) -> AF
Z63: =DEC2HEX(H10,2) -> B2
Z64: =DEC2HEX(I10,2) -> B4
Z65: =DEC2HEX(J10,2) -> B7
Z66: =DEC2HEX(K10,2) -> B9
Z67: =DEC2HEX(D11,2) -> BC
Z68: =DEC2HEX(E11,2) -> BF
Z69: =DEC2HEX(F11,2) -> C1
Z70: =DEC2HEX(G11,2) -> C4
Z71: =DEC2HEX(H11,2) -> C6
Z72: =DEC2HEX(I11,2) -> C9
Z73: =DEC2HEX(J11,2) -> CB
Z74: =DEC2HEX(K11,2) -> CE
Z75: =DEC2HEX(D12,2) -> D1
Z76: =DEC2HEX(E12,2) -> D3
Z77: =DEC2HEX(F12,2) -> D6
Z78: =DEC2HEX(G12,2) -> D8
Z79: =DEC2HEX(H12,2) -> DB
Z80: =DEC2HEX(I12,2) -> DD
Z81: =DEC2HEX(J12,2) -> E0
Z82: =DEC2HEX(K12,2) -> E2
Z83: =DEC2HEX(D13,2) -> E5
Z84: =DEC2HEX(E13,2) -> E8
Z85: =DEC2HEX(F13,2) -> EA
Z86: =DEC2HEX(G13,2) -> ED
Z87: =DEC2HEX(H13,2) -> EF
Z88: =DEC2HEX(I13,2) -> F2
Z89: =DEC2HEX(J13,2) -> F4
Z90: =DEC2HEX(K13,2) -> F7
Z91: =DEC2HEX(D14,2) -> FA
Z92: =DEC2HEX(E14,2) -> FC
Z93: =DEC2HEX(F14,2) -> FF
Z94: =DEC2HEX(G14,2) -> FF
Z95: =DEC2HEX(H14,2) -> FF
Z96: =DEC2HEX(I14,2) -> FF
Z97: =DEC2HEX(J14,2) -> FF
Z98: =DEC2HEX(K14,2) -> 00
Z99: =DEC2HEX(D15,2) -> 00
Z100: =DEC2HEX(E15,2) -> 00
Z101: =DEC2HEX(F15,2) -> 00
Z102: =DEC2HEX(G15,2) -> 00
Z103: =DEC2HEX(H15,2) -> 00
Z104: =DEC2HEX(I15,2) -> 00
Z105: =DEC2HEX(J15,2) -> 00
Z106: =DEC2HEX(K15,2) -> 00
Z107: =DEC2HEX(D16,2) -> 00
Z108: =DEC2HEX(E16,2) -> 00
Z109: =DEC2HEX(F16,2) -> 00
Z110: =DEC2HEX(G16,2) -> 00
Z111: =DEC2HEX(H16,2) -> 00
Z112: =DEC2HEX(I16,2) -> 00
Z113: =DEC2HEX(J16,2) -> 00
Z114: =DEC2HEX(K16,2) -> 00
Z115: =DEC2HEX(D17,2) -> 4F
Z116: =DEC2HEX(E17,2) -> 14
Z117: =DEC2HEX(F17,2) -> 02
Z118: =DEC2HEX(G17,2) -> 32
Z119: =DEC2HEX(H17,2) -> 14
Z120: =DEC2HEX(I17,2) -> 14
Z121: =DEC2HEX(J17,2) -> 14
Z122: =DEC2HEX(K17,2) -> 01
Z123: =DEC2HEX(D18,2) -> 12
Z124: =DEC2HEX(E18,2) -> 0C
Z125: =DEC2HEX(F18,2) -> 63
Z126: =DEC2HEX(G18,2) -> 02
Z127: =DEC2HEX(H18,2) -> 0F
Z128: =DEC2HEX(I18,2) -> 14
Z129: =DEC2HEX(J18,2) -> 0B
Z130: =DEC2HEX(K18,2) -> 69

Sheet EEPROM16
O1: INTEL 16HEX format | Q1: RAW format
A3: Bytes in Row | B3: Address MSB (hex) | C3: Address LSB (hex) | D3: Address Start (MSB) | E3: Address Start (LSB) | F3: +0 | G3: +1 | H3: +2 | I3: +3 | J3: +4 | K3: +5 | L3: +6 | M3: +7 | O3: :020000040000FA | S3: sum[dec] | T3: sum[hex] | U3: LSB | V3: two's complement [dec] | W3: two's complement +1 | X3: cksum | Y3: cksum corrigé
A4: 16 | B4: 42 | C4: =DEC2HEX(E4,2) -> 00 | D4: 224 | E4: 0 | F4: =Advance_curve!J9 -> 27 | G4: =Advance_curve!J10 -> 29 | H4: =Advance_curve!J11 -> 31 | I4: =Advance_curve!J12 -> 33 | J4: =Advance_curve!J13 -> 34 | K4: =Advance_curve!J14 -> 37 | L4: =Advance_curve!J15 -> 39 | M4: =Advance_curve!J16 -> 42 | O4: =":"&DEC2HEX(A4,2)&B4&C4&"00"&DEC2HEX(F4,2)&"00"&DEC2HEX(G4,2)&"00"&DEC2HEX(H4,2)&"00"&DEC2HEX(I4,2)&"00"&DEC2HEX(J4,2)&"00"&DEC2HEX(K4,2)&"00"&DEC2HEX(L4,2)&"00"&DEC2HEX(M4,2)&"00"&Y4 -> :104200001B001D001F0021002200250027002A0000 | Q4: =DEC2HEX(F4,2)&" "&DEC2HEX(G4,2)&" "&DEC2HEX(H4,2)&" "&DEC2HEX(I4,2)&" "&DEC2HEX(J4,2)&" "&DEC2HEX(K4,2)&" "&DEC2HEX(L4,2)&" "&DEC2HEX(M4,2) -> 1B 1D 1F 21 22 25 27 2A | S4: =SUM(D4:M4) -> 496 | T4: =DEC2HEX(S4) -> 1F0 | U4: =RIGHT(T4,2) -> F0 | V4: =255-HEX2DEC(U4) -> 15 | W4: =V4+1 -> 16 | X4: =IF(W4=256,"00",DEC2HEX(W4,2)) -> 10 | Y4: =RIGHT(DEC2HEX(HEX2DEC(X4)-16,2),2) -> 00
A5: 16 | B5: 42 | C5: =DEC2HEX(E5,2) -> 10 | D5: 224 | E5: 16 | F5: =Advance_curve!J17 -> 45 | G5: =Advance_curve!J18 -> 47 | H5: =Advance_curve!J19 -> 50 | I5: =Advance_curve!J20 -> 52 | J5: =Advance_curve!J21 -> 55 | K5: =Advance_curve!J22 -> 57 | L5: =Advance_curve!J23 -> 60 | M5: =Advance_curve!J24 -> 63 | O5: =":"&DEC2HEX(A5,2)&B5&C5&"00"&DEC2HEX(F5,2)&"00"&DEC2HEX(G5,2)&"00"&DEC2HEX(H5,2)&"00"&DEC2HEX(I5,2)&"00"&DEC2HEX(J5,2)&"00"&DEC2HEX(K5,2)&"00"&DEC2HEX(L5,2)&"00"&DEC2HEX(M5,2)&"00"&Y5 -> :104210002D002F0032003400370039003C003F0053 | Q5: 2D 2F 32 34 37 39 3C 3F | S5: =SUM(D5:M5) -> 669 | T5: =DEC2HEX(S5) -> 29D | U5: =RIGHT(T5,2) -> 9D | V5: =255-HEX2DEC(U5) -> 98 | W5: 99 | X5: 63 | Y5: 53
A6: 16 | B6: 42 | C6: 20 | D6: 224 | E6: 32 | F6: =Advance_curve!J25 -> 65 | G6: =Advance_curve!J26 -> 68 | H6: =Advance_curve!J27 -> 70 | I6: =Advance_curve!J28 -> 73 | J6: =Advance_curve!J29 -> 75 | K6: =Advance_curve!J30 -> 78 | L6: =Advance_curve!J31 -> 80 | M6: =Advance_curve!J32 -> 83 | O6: =":"&DEC2HEX(A6,2)&B6&C6&"00"&DEC2HEX(F6,2)&"00"&DEC2HEX(G6,2)&"00"&DEC2HEX(H6,2)&"00"&DEC2HEX(I6,2)&"00"&DEC2HEX(J6,2)&"00"&DEC2HEX(K6,2)&"00"&DEC2HEX(L6,2)&"00"&DEC2HEX(M6,2)&"00"&Y6 -> :1042200041004400460049004B004E0050005300A0 | Q6: 41 44 46 49 4B 4E 50 53 | S6: =SUM(D6:M6) -> 848 | T6: 350 | U6: 50 | V6: 175 | W6: 176 | X6: B0 | Y6: A0
A7: 16 | B7: 42 | C7: 30 | D7: 224 | E7: 48 | F7: =Advance_curve!J33 -> 86 | G7: =Advance_curve!J34 -> 88 | H7: =Advance_curve!J35 -> 91 | I7: =Advance_curve!J36 -> 93 | J7: =Advance_curve!J37 -> 96 | K7: =Advance_curve!J38 -> 98 | L7: =Advance_curve!J39 -> 101 | M7: =Advance_curve!J40 -> 103 | O7: :10423000560058005B005D006000620065006700EC | Q7: 56 58 5B 5D 60 62 65 67 | S7: 1028 | T7: 404 | U7: 04 | V7: 251 | W7: 252 | X7: FC | Y7: EC
A8: 16 | B8: 42 | C8: 40 | D8: 224 | E8: 64 | F8: =Advance_curve!J41 -> 106 | G8: =Advance_curve!J42 -> 109 | H8: =Advance_curve!J43 -> 111 | I8: =Advance_curve!J44 -> 114 | J8: =Advance_curve!J45 -> 116 | K8: =Advance_curve!J46 -> 119 | L8: =Advance_curve!J47 -> 121 | M8: =Advance_curve!J48 -> 124 | O8: :104240006A006D006F0072007400770079007C0038 | Q8: 6A 6D 6F 72 74 77 79 7C | S8: 1208 | T8: 4B8 | U8: B8 | V8: 71 | W8: 72 | X8: 48 | Y8: 38
A9: 16 | B9: 42 | C9: 50 | D9: 224 | E9: 80 | F9: =Advance_curve!J49 -> 127 | G9: =Advance_curve!J50 -> 129 | H9: =Advance_curve!J51 -> 132 | I9: =Advance_curve!J52 -> 134 | J9: =Advance_curve!J53 -> 137 | K9: =Advance_curve!J54 -> 139 | L9: =Advance_curve!J55 -> 142 | M9: =Advance_curve!J56 -> 144 | O9: :104250007F0081008400860089008B008E00900084 | Q9: 7F 81 84 86 89 8B 8E 90 | S9: 1388 | T9: 56C | U9: 6C | V9: 147 | W9: 148 | X9: 94 | Y9: 84
A10: 16 | B10: 42 | C10: 60 | D10: 224 | E10: 96 | F10: =Advance_curve!J57 -> 147 | G10: =Advance_curve!J58 -> 150 | H10: =Advance_curve!J59 -> 152 | I10: =Advance_curve!J60 -> 155 | J10: =Advance_curve!J61 -> 157 | K10: =Advance_curve!J62 -> 160 | L10: =Advance_curve!J63 -> 162 | M10: =Advance_curve!J64 -> 165 | O10: :104260009300960098009B009D00A000A200A500D0 | Q10: 93 96 98 9B 9D A0 A2 A5 | S10: 1568 | T10: 620 | U10: 20 | V10: 223 | W10: 224 | X10: E0 | Y10: D0
A11: 16 | B11: 42 | C11: 70 | D11: 224 | E11: 112 | F11: =Advance_curve!J65 -> 167 | G11: =Advance_curve!J66 -> 170 | H11: =Advance_curve!J67 -> 173 | I11: =Advance_curve!J68 -> 175 | J11: =Advance_curve!J69 -> 178 | K11: =Advance_curve!J70 -> 180 | L11: =Advance_curve!J71 -> 183 | M11: =Advance_curve!J72 -> 185 | O11: :10427000A700AA00AD00AF00B200B400B700B9001D | Q11: A7 AA AD AF B2 B4 B7 B9 | S11: 1747 | T11: 6D3 | U11: D3 | V11: 44 | W11: 45 | X11: 2D | Y11: 1D
A12: 16 | B12: 42 | C12: 80 | D12: 224 | E12: 128 | F12: =Advance_curve!J73 -> 188 | G12: =Advance_curve!J74 -> 191 | H12: =Advance_curve!J75 -> 193 | I12: =Advance_curve!J76 -> 196 | J12: =Advance_curve!J77 -> 198 | K12: =Advance_curve!J78 -> 201 | L12: =Advance_curve!J79 -> 203 | M12: =Advance_curve!J80 -> 206 | O12: :10428000BC00BF00C100C400C600C900CB00CE0068 | Q12: BC BF C1 C4 C6 C9 CB CE | S12: 1928 | T12: 788 | U12: 88 | V12: 119 | W12: 120 | X12: 78 | Y12: 68
A13: 16 | B13: 42 | C13: 90 | D13: 224 | E13: 144 | F13: =Advance_curve!J81 -> 209 | G13: =Advance_curve!J82 -> 211 | H13: =Advance_curve!J83 -> 214 | I13: =Advance_curve!J84 -> 216 | J13: =Advance_curve!J85 -> 219 | K13: =Advance_curve!J86 -> 221 | L13: =Advance_curve!J87 -> 224 | M13: =Advance_curve!J88 -> 226 | O13: :10429000D100D300D600D800DB00DD00E000E200B4 | Q13: D1 D3 D6 D8 DB DD E0 E2 | S13: 2108 | T13: 83C | U13: 3C | V13: 195 | W13: 196 | X13: =IF(W13=256,"00",DEC2HEX(W13,2)) -> C4 | Y13: B4
A14: 16 | B14: 42 | C14: A0 | D14: 224 | E14: 160 | F14: =Advance_curve!J89 -> 229 | G14: =Advance_curve!J90 -> 232 | H14: =Advance_curve!J91 -> 234 | I14: =Advance_curve!J92 -> 237 | J14: =Advance_curve!J93 -> 239 | K14: =Advance_curve!J94 -> 242 | L14: =Advance_curve!J95 -> 244 | M14: =Advance_curve!J96 -> 247 | O14: :1042A000E500E800EA00ED00EF00F200F400F70000 | Q14: E5 E8 EA ED EF F2 F4 F7 | S14: 2288 | T14: 8F0 | U14: F0 | V14: 15 | W14: 16 | X14: =IF(W14=256,"00",DEC2HEX(W14,2)) -> 10 | Y14: 00
A15: 16 | B15: 42 | C15: B0 | D15: 224 | E15: 176 | F15: =Advance_curve!J97 -> 250 | G15: =Advance_curve!J98 -> 252 | H15: =Advance_curve!J99 -> 255 | I15: =Advance_curve!J100 -> 255 | J15: =Advance_curve!J101 -> 255 | K15: =Advance_curve!J102 -> 255 | L15: =Advance_curve!J103 -> 255 | M15: 0 | O15: :1042B000FA00FC00FF00FF00FF00FF00FF0000006F | Q15: FA FC FF FF FF FF FF 00 | S15: 2177 | T15: 881 | U15: 81 | V15: 126 | W15: 127 | X15: 7F | Y15: 6F
A16: 16 | B16: 42 | C16: C0 | D16: 224 | E16: 192 | F16: 0 | G16: 0 | H16: 0 | I16: 0 | J16: 0 | K16: 0 | L16: 0 | M16: 0 | O16: :1042C0000000000000000000000000000000000050 | Q16: 00 00 00 00 00 00 00 00 | S16: 416 | T16: 1A0 | U16: A0 | V16: 95 | W16: 96 | X16: 60 | Y16: 50
A17: 16 | B17: 42 | C17: D0 | D17: 224 | E17: 208 | F17: 0 | G17: 0 | H17: 0 | I17: 0 | J17: 0 | K17: 0 | L17: 0 | M17: 0 | O17: :1042D0000000000000000000000000000000000040 | Q17: 00 00 00 00 00 00 00 00 | S17: 432 | T17: 1B0 | U17: B0 | V17: 79 | W17: 80 | X17: 50 | Y17: 40
A18: 16 | B18: 42 | C18: E0 | D18: 224 | E18: 224 | F18: =Advance_curve!$I$1 -> 79 | G18: =Advance_curve!$J$1 -> 20 | H18: =Advance_curve!$K$1 -> 2 | I18: =Advance_curve!$F$5 -> 50 | J18: 20 | K18: 20 | L18: 20 | M18: =Advance_curve!$M$35 -> 1 | O18: :1042E0004F0014000200320014001400140001005C | Q18: 4F 14 02 32 14 14 14 01 | S18: 660 | T18: 294 | U18: 94 | V18: 107 | W18: 108 | X18: 6C | Y18: 5C
A19: 16 | B19: 42 | C19: F0 | D19: 224 | E19: 240 | F19: =VeryLowRPM!C9 -> 18.20444444 | G19: =INT((1/Advance_curve!$M$30)*(60*1000000)/Advance_curve!$M$34/256) -> 12 | H19: =IF(Advance_curve!$M$32="Auto",99,Advance_curve!$M$32/ 500) -> 99 | I19: =Advance_curve!$M$30 -> 2 | J19: =advance_at_lowRPM!I2 -> 15 | K19: =Advance_curve!$J$5 -> 20 | L19: =Advance_curve!$B$9 -> 11 | M19: =Advance_curve!$B$103 -> 105 | O19: :1042F00012000C00630002000F0014000B00690006 | Q19: 12 0C 63 02 0F 14 0B 69 | S19: 746.2044444 | T19: 2EA | U19: EA | V19: 21 | W19: 22 | X19: 16 | Y19: 06
F20: End of File | O20: :00000001FF
O24: The checksum value is the two's complement of the least significant byte (LSB) of the sum of all decoded byte values in the record that precede the checksum.
O25: It is computed by summing the decoded byte values, extracting the LSB of the sum, and calculating the two's complement of the LSB
O26: (e.g., by inverting its bits and adding one).
O27: For example, in the case of the record :0300300002337A1E, the sum of the decoded byte values is 03 + 00 + 30 + 00 + 02 + 33 + 7A = E2.
O28: The two's complement of E2 is 1E, which is the checksum appearing at the end of the record.
O30: Pour effectuer un complément à 2 il faut :
O31: - Inverser tout les bits (1 en 0, 0 en 1) (ou faire 255-chiffre) Ex: DECHEX(255-SOMME(B3:K3)+1) = DECHEX(255+1-SOMME(B3:K3)) = DECHEX(256-SOMME(B3:K3))
O32: puis ajouter 1 au résultat
O33: le complement a 2 de 0 est egal a 0
O34: Si 2 derniers chiffres de h100 = 00: cksum OK
O37: Méthode 1 (1er onglet)
O38: C'est la méthode bestiale. On convertit le nombre (positif) en base 2, puis on inverse les bits et ensuite on ajoute 1 avec propagation d'une éventuelle retenue.
O40: Méthode 2 (2ème onglet)
O41: On utilise la formule suivante pour le complément à 2: Si X est le nombre négatif à convertir, la conversion de (2^16)-|X| en base 2 donne le résultat.
B42: :10E000001B
B43: :BBAAAATTHHHHHH.....HHHHCC
B44: BB est le nombre d'octets de données dans la ligne (en hexadécimal)
B45: AAAA est l'adresse absolue (ou relative) du début de la lign
B46: TT est le champ spécifiant le type
B47: HH...HHHH est le champ des données | J47: 00, données, contient les données et l'adresse 16 bit.
B48: CC est l'octet de checksum. C'est le complément à deux de la somme des valeurs binaires des octets de tous les autres champs. (Les calculs sont faits sur 8 bits, en ignorant les retenues.)
B50: Pour vérifier la validité des données, il suffit de faire la somme de tous les octets représentés, à partir des deux-points jusqu'à la fin de ligne (checksum inclus: BB+AA+AA+TT+HH+...+CC): le résultat attendu est 0 (modulo 256).

Sheet Accuracy
A1: CYLINDRE: | B1: 1 | C1: cyl
A2: STROKES | B2: 2 | C2: stk
A3: ACCURACY | B3: 3.4 | C3: us
A5: RPM | B5: ERROR
A6: 0 | B6: 0
A7: 1000 | B7: =$B$3/((1000*(60*$B$2)/(2*$B$1*$A7))/0.36) -> 0.0204
A8: 2000 | B8: =$B$3/((1000*(60*$B$2)/(2*$B$1*$A8))/0.36) -> 0.0408
A9: 3000 | B9: 0.0612
A10: 4000 | B10: 0.0816
A11: 5000 | B11: 0.102
A12: 6000 | B12: 0.1224
A13: 7000 | B13: 0.1428
A14: 8000 | B14: 0.1632
A15: 9000 | B15: 0.1836
A16: 10000 | B16: 0.204

Sheet formules
C1: TEMPS | D1: CYLINDRE | E1: RPM | F1: FREQUENCE | G1: PERIODE | H1: PERIODE | I1: 1° | K1: durée = | L1: degrés | M1: relatif pickup
C2: Nbr | D2: Nbr | E2: tr/mn | F2: Hz | G2: ms | H2: pour 2cyl 2tps | I2: ms | J2: us | K2: us | M2: =Advance_curve!F5 -> 50
C3: 2 | D3: 1 | E3: 10000 | F3: =(2*$D$3*$E$3)/(60*$C$3) -> 166.6666667 | G3: =1000*(60*$C$3)/(2*$D$3*$E$3) -> 6 | H3: =1000*60/$E$3 -> 6 | I3: =G3/360 -> 0.01666666667 | J3: =G3/0.36 -> 16.66666667 | K3: 1884 | L3: =K3/J3 -> 113.04 | M3: =L3-Advance_curve!F5 -> 63.04
E5: =(60*$F$5*$C$3)/(2*$D$3) -> 120 | F5: 2 | G5: =1000*(60*$C$3)/(2*$D$3*$E$5) -> 500 | H5: =1000*60/$E$5 -> 500 | I5: =G5/360 -> 1.388888889 | J5: =G5/0.36 -> 1388.888889 | L5: FRQ = (2*CYL*RPM) / (60*TEMPS)
L6: RPM = (60*FRQ*TEMPS) / ( 2*CYL)
E7: Délai | F7: => | G7: Délai | H7: Avance | L7: 1degré = (1000*1000*60*CYL) / ( 2*TEMPS*RPM)/360
E8: us | G8: ° | H8: °
E9: 60800 | G9: =E9/J3 -> 3648 | H9: =Advance_curve!F5 -G9 -> -3598
E11: Frequence | F11: => | G11: RPM
E12: 21 | F12: Hz | G12: =60*E12*$C$3/2*$D$3 -> 1260
E14: Periode | F14: => | G14: RPM
E15: 20 | F15: ms | G15: =60*(1000/E15)*$C$3/2*$D$3 -> 3000
B17: Multiplier | C17: Delay | D17: Prescaler | E17: Nombre de | F17: Nombre | G17: Fréquence | H17: Régime | I17: Période | K17: TIMER1 | L17: Delay of: | N17: =IF(O20>0,"Avance","RETARD") -> RETARD
E18: Cylindres | F18: de temps | K18: high | N18: BTDC
C19: us | G19: Hz | H19: tr/mn | I19: ms | J19: µs | K19: =IF(K20>127,"erreur","") ->  | L19: µs | M19: ms | N19: ms | O19: degrees
B20: 4 | C20: 20 | D20: =Advance_curve!M30 -> 2 | E20: 1 | F20: =C3 -> 2 | G20: =F3 -> 166.6666667 | H20: =(G20*60*F20)/(2*E20) -> 10000 | I20: =1000/G20 -> 6 | J20: =1000000/G20 -> 6000 | K20: =INT(J20/($D$20*255)) -> 11 | L20: =($C$20 *$K$20*$B$20) -> 880 | M20: =L20/1000 -> 0.88 | N20: =(I20/360)*Advance_curve!F5 - M20 -> -0.04666666667 | O20: =(360/I20)*N20 -> -2.8
B24: http://syskb.com/creer-une-liste-deroulante-dans-excel-2010/ | N24: DUREE
N25: us
B26: TIMER 0 | H26: Timer1 | N26: 300
B27: Quartz a 4MHz | H27: Quartz a 4MHz
B28: - Fosc/4 or 4MHz/4 = 1MHz | H28: - Fosc/4 or 4MHz/4 = 1MHz
B29: - Prescaler sur 256 dans le registre T0CON | H29: - Prescaler sur 8 dans le registre T1CON
B30: - period of the frequency input to Timer 0 : | H30: - period of the frequency input to Timer 1 :
B31: 1/(1MHz/256) = 256us | H31: 1/(1MHz/8) = 8us
B32: This is the period of time for each count in Timer 0 i.e. | H32: This is the period of time for each count in Timer 1 i.e.
B33: 256 * 256us = 65536us = 65.636ms = 15.26Hz | H33: 65536 * 8us = 525ms = 1,9Hz
B35: Lorsque TMR0=10, il s'est écoulé 10x256us = 2560us = 2,6ms.
B36: Si entre temps le moteur a fait 1 tour, c'est qu'il tourne a 2,56ms par tour
B37: pour trouver des tours/mn: en 1mn (soit 60sec * 1000 = 60000ms) | H37: Calculator:
B38: 60000/2,56 = 23437 RPM | H38: http://eng-serve.com/pic/pic_timer.html
B41: Conversion BIN to HEX:
B43: Position | C43: 8 | D43: 7 | E43: 6 | F43: 5 | G43: 4 | H43: 3 | I43: 2 | J43: 1
B44: numero | C44: 7 | D44: 6 | E44: 5 | F44: 4 | G44: 3 | H44: 2 | I44: 1 | J44: 0
B45: Puissance | C45: 2^3 | D45: 2^2 | E45: 2^1 | F45: 2^0 | G45: 2^3 | H45: 2^2 | I45: 2^1 | J45: 2^0
B46: Valeur 2x4bits | C46: 8 | D46: 4 | E46: 2 | F46: 1 | G46: 8 | H46: 4 | I46: 2 | J46: 1
B47: Binaire | C47: 0 | D47: 1 | E47: 1 | F47: 0 | G47: 1 | H47: 0 | I47: 1 | J47: 1
B48: Valeur | C48: =C47*C46 -> 0 | D48: =D47*D46 -> 4 | E48: 2 | F48: 0 | G48: 8 | H48: 0 | I48: 2 | J48: 1
B49: 2x4bits | C49: =C48+D48+E48+F48 -> 6 | G49: =G48+H48+I48+J48 -> 11
B50: Hexa 2x4bits | C50: =DEC2HEX(C49) -> 6 | G50: =DEC2HEX(G49) -> B
B51: Hexa | C51: =CONCATENATE(C50,G50) -> 6B

Sheet Calculs
A2: - Tant que pickup est bas (=0) 99% du temps, on met la valeur du TIMER0 dans la variable PERL (PERiode Low)
A3: - Chaque fois que TIMER0 provoque une INTerruption de debordement lorsqu'il arrive a 255, dans la routine d'interruption on incremente TMR0H (TIMER0 High)
A4: - Quand le pickup est haut (=1) (pulse) :
A5: - on memorise la valeur de TMR0H (Nbr de debordements de TIMER0), dans PERH (PERiode High)
A6: - et on memorise aussi la valeur du TIMER0 dans la variable PERL.
A7: - puis on RAZ les timers,
A9: - Ainsi la durée ecoulé entre 2 pickups est stockée dans PERL et PERH. Soit : (PERH x 255 ) + PERL
A11: Avec Q=4MHz, Prescaler = 256 et Preset = 0
A12: TIMER0 s'incremente toutes les 256us et deborde toutes les 256x256= 65536us = 65,5ms = 15,25Hz
A13: (utiliser: E:\Pic\Exemples\pic_calculations.xls)
A14: - donc [ (PERH * 255 ) + PERL ] * 65,5ms = durée entre 2 pulses.
A16: - Dans le soft:
A17: - on regarde si PERH est > a une certaine valeur, auquel cas le moteur tourne très lentement
A18: - on regarde si PERL est < a une certaine valeur, auquel cas le moteur tourne trop vite => arret des sparks pour limiter le regime
A19: - on regarde si PERL est < a une certaine valeur, auquel cas le moteur tourne très vite => spark immediat (sans avance)
A20: - entre ces 2 limites, on lit un tableau qui retourne un chiffre (delay) pour chacune des 95 valeurs de PERL
A21: - ce DELAY est le temps d'attente (nbr de boucles d'atttente) avant d'envoyer le spark
A23: Propriete de l'interruption:
F26: Liste deroulante
F27: selectionner la cellule
F28: donnees> validité des données> validite des donnees > afficher: liste
A38: A 15,4Hz = 924RPM, il faut 64935us pour faire un tour, donc TIMER0 a le temps d'aller jusqu’à 254 et de presque deborder:

Sheet Excel
A3: Conversion de valeurs: | C3: =SI(I2=2;2;(SI(I2=3;3;(SI(I2=4;4;(SI(I2=5;5;(SI(I2=6;6)))))))))
A5: Liste deroulante: | C5: Donnees> Validite des donnees
A8: les graphes n'affichent pas la valeur #N/A , utiliser #N/A pour faire disparaitre les points du graphe
A10: Pour afficher les liens d'une cellule: selectionner la > Formule > Reperer les antécédents ou dependants

Sheet calibrage
F1: avec pickup de 50us | G1: avec DAC duree proportionnelle | I1: mesure N°1 oscillo | J1: correction1 | L1: mesure N°2 oscillo | O1: mesure N°2 oscillo | R1: mesure N°2 oscillo | U1: mesure N°3 oscillo
B2: RPM | C2: HZ | D2: ms | E2: us | F2: L | G2: L | I2: ms | J2: L | O2: ms | R2: ms | U2: ms
A3: 1 | B3: 1000 | C3: =(2*formules!$D$3*B3)/(60*formules!$C$3) -> 16.66666667 | D3: =1000*(60*formules!$C$3)/(2*formules!$D$3*B3) -> 60 | E3: =D3*1000 -> 60000 | G3: 62000 | H3: =CONCATENATE($X3," = ",G3) -> FREQUENCE[1] = 62000 | I3: 70.4 | J3: 52800 | K3: =CONCATENATE($X3," = ",J3) -> FREQUENCE[1] = 52800 | L3: 60.8 | M3: 52000 | N3: =CONCATENATE($X3," = ",M3) -> FREQUENCE[1] = 52000 | O3: 60 | P3: 52000 | Q3: =CONCATENATE($X3," = ",P3) -> FREQUENCE[1] = 52000 | R3: 60 | S3: 52000 | T3: =CONCATENATE($X3," = ",S3) -> FREQUENCE[1] = 52000 | V3: 52000 | W3: =CONCATENATE($X3," = ",V3) -> FREQUENCE[1] = 52000 | X3: =CONCATENATE("FREQUENCE[",A3,"]") -> FREQUENCE[1]
A4: 2 | B4: 1500 | C4: =(2*formules!$D$3*B4)/(60*formules!$C$3) -> 25 | D4: =1000*(60*formules!$C$3)/(2*formules!$D$3*B4) -> 40 | E4: =D4*1000 -> 40000 | G4: 34500 | H4: =CONCATENATE(X4," = ",G4) -> FREQUENCE[2] = 34500 | J4: 0 | K4: =CONCATENATE($X4," = ",J4) -> FREQUENCE[2] = 0 | M4: 0 | N4: =CONCATENATE($X4," = ",M4) -> FREQUENCE[2] = 0 | P4: 0 | Q4: =CONCATENATE($X4," = ",P4) -> FREQUENCE[2] = 0 | S4: 0 | T4: =CONCATENATE($X4," = ",S4) -> FREQUENCE[2] = 0 | V4: 0 | W4: =CONCATENATE($X4," = ",V4) -> FREQUENCE[2] = 0 | X4: FREQUENCE[2]
A5: 3 | B5: 2000 | C5: =(2*formules!$D$3*B5)/(60*formules!$C$3) -> 33.33333333 | D5: =1000*(60*formules!$C$3)/(2*formules!$D$3*B5) -> 30 | E5: 30000 | F5: 27320 | G5: 26670 | H5: FREQUENCE[3] = 26670 | I5: 31.6 | J5: 24700 | K5: FREQUENCE[3] = 24700 | L5: 30 | M5: 24700 | N5: FREQUENCE[3] = 24700 | O5: 29.4 | P5: 25200 | Q5: FREQUENCE[3] = 25200 | R5: 30 | S5: 25200 | T5: FREQUENCE[3] = 25200 | V5: 25200 | W5: FREQUENCE[3] = 25200 | X5: FREQUENCE[3]
A6: 4 | B6: 2500 | C6: =(2*formules!$D$3*B6)/(60*formules!$C$3) -> 41.66666667 | D6: =1000*(60*formules!$C$3)/(2*formules!$D$3*B6) -> 24 | E6: 24000 | F6: 21870 | G6: 21300 | H6: FREQUENCE[4] = 21300 | J6: 0 | K6: FREQUENCE[4] = 0 | M6: 0 | N6: FREQUENCE[4] = 0 | P6: 0 | Q6: FREQUENCE[4] = 0 | S6: 0 | T6: FREQUENCE[4] = 0 | V6: 0 | W6: FREQUENCE[4] = 0 | X6: FREQUENCE[4]
A7: 5 | B7: 3000 | C7: =(2*formules!$D$3*B7)/(60*formules!$C$3) -> 50 | D7: =1000*(60*formules!$C$3)/(2*formules!$D$3*B7) -> 20 | E7: 20000 | F7: 18190 | G7: 17670 | H7: FREQUENCE[5] = 17670 | I7: 21.6 | J7: 16360 | K7: FREQUENCE[5] = 16360 | L7: 20.4 | M7: 16040 | N7: FREQUENCE[5] = 16040 | O7: 19.7 | P7: 16280 | Q7: FREQUENCE[5] = 16280 | R7: 20 | S7: 16280 | T7: FREQUENCE[5] = 16280 | V7: 16280 | W7: FREQUENCE[5] = 16280 | X7: FREQUENCE[5]
A8: 6 | B8: 3500 | C8: =(2*formules!$D$3*B8)/(60*formules!$C$3) -> 58.33333333 | D8: =1000*(60*formules!$C$3)/(2*formules!$D$3*B8) -> 17.14285714 | E8: 17142.85714 | F8: 15600 | G8: 15070 | H8: FREQUENCE[6] = 15070 | J8: 0 | K8: FREQUENCE[6] = 0 | M8: 0 | N8: FREQUENCE[6] = 0 | P8: 0 | Q8: FREQUENCE[6] = 0 | S8: 0 | T8: FREQUENCE[6] = 0 | V8: 0 | W8: FREQUENCE[6] = 0 | X8: FREQUENCE[6]
A9: 7 | B9: 4000 | C9: =(2*formules!$D$3*B9)/(60*formules!$C$3) -> 66.66666667 | D9: =1000*(60*formules!$C$3)/(2*formules!$D$3*B9) -> 15 | E9: 15000 | F9: 13580 | G9: 13100 | H9: FREQUENCE[7] = 13100 | I9: 16.6 | J9: 11800 | K9: FREQUENCE[7] = 11800 | L9: 15 | M9: 11800 | N9: FREQUENCE[7] = 11800 | O9: 14.7 | P9: 12040 | Q9: FREQUENCE[7] = 12040 | R9: 15.3 | S9: 11800 | T9: FREQUENCE[7] = 11800 | V9: 11800 | W9: FREQUENCE[7] = 11800 | X9: FREQUENCE[7]
A10: 8 | B10: 4500 | C10: =(2*formules!$D$3*B10)/(60*formules!$C$3) -> 75 | D10: =1000*(60*formules!$C$3)/(2*formules!$D$3*B10) -> 13.33333333 | E10: 13333.33333 | F10: 12149 | G10: 11610 | H10: FREQUENCE[8] = 11610 | J10: 0 | K10: FREQUENCE[8] = 0 | M10: 0 | N10: FREQUENCE[8] = 0 | P10: 0 | Q10: FREQUENCE[8] = 0 | S10: 0 | T10: FREQUENCE[8] = 0 | V10: 0 | W10: FREQUENCE[8] = 0 | X10: FREQUENCE[8]
A11: 9 | B11: 5000 | C11: =(2*formules!$D$3*B11)/(60*formules!$C$3) -> 83.33333333 | D11: =1000*(60*formules!$C$3)/(2*formules!$D$3*B11) -> 12 | E11: 12000 | F11: 10958 | G11: 10410 | H11: FREQUENCE[9] = 10410 | I11: 13.5 | J11: 9200 | K11: FREQUENCE[9] = 9200 | L11: 12.2 | M11: 9050 | N11: FREQUENCE[9] = 9050 | O11: 12 | P11: 9050 | Q11: FREQUENCE[9] = 9050 | R11: 11.9 | S11: 9120 | T11: FREQUENCE[9] = 9120 | U11: 12 | V11: 9120 | W11: FREQUENCE[9] = 9120 | X11: FREQUENCE[9]
A12: 10 | B12: 5500 | C12: =(2*formules!$D$3*B12)/(60*formules!$C$3) -> 91.66666667 | D12: =1000*(60*formules!$C$3)/(2*formules!$D$3*B12) -> 10.90909091 | E12: 10909.09091 | F12: 9980 | G12: 9410 | H12: FREQUENCE[10] = 9410 | J12: 0 | K12: FREQUENCE[10] = 0 | M12: 0 | N12: FREQUENCE[10] = 0 | P12: 0 | Q12: FREQUENCE[10] = 0 | S12: 0 | T12: FREQUENCE[10] = 0 | V12: 0 | W12: FREQUENCE[10] = 0 | X12: FREQUENCE[10]
A13: 11 | B13: 6000 | C13: =(2*formules!$D$3*B13)/(60*formules!$C$3) -> 100 | D13: =1000*(60*formules!$C$3)/(2*formules!$D$3*B13) -> 10 | E13: 10000 | F13: 9136 | G13: 8580 | H13: FREQUENCE[11] = 8580 | I13: 11.6 | J13: 7400 | K13: FREQUENCE[11] = 7400 | L13: 10.3 | M13: 7180 | N13: FREQUENCE[11] = 7180 | O13: 9.9 | P13: 7250 | Q13: FREQUENCE[11] = 7250 | R13: 10 | S13: 7250 | T13: FREQUENCE[11] = 7250 | V13: 7250 | W13: FREQUENCE[11] = 7250 | X13: FREQUENCE[11]
A14: 12 | B14: 6500 | C14: =(2*formules!$D$3*B14)/(60*formules!$C$3) -> 108.3333333 | D14: =1000*(60*formules!$C$3)/(2*formules!$D$3*B14) -> 9.230769231 | E14: 9230.769231 | F14: 8408 | G14: 7900 | H14: FREQUENCE[12] = 7900 | J14: 0 | K14: FREQUENCE[12] = 0 | M14: 0 | N14: FREQUENCE[12] = 0 | P14: 0 | Q14: FREQUENCE[12] = 0 | S14: 0 | T14: FREQUENCE[12] = 0 | V14: 0 | W14: FREQUENCE[12] = 0 | X14: FREQUENCE[12]
A15: 13 | B15: 7000 | C15: =(2*formules!$D$3*B15)/(60*formules!$C$3) -> 116.6666667 | D15: =1000*(60*formules!$C$3)/(2*formules!$D$3*B15) -> 8.571428571 | E15: 8571.428571 | F15: 7730 | G15: 7280 | H15: FREQUENCE[13] = 7280 | I15: 10.1 | J15: 6100 | K15: FREQUENCE[13] = 6100 | L15: 8.8 | M15: 5950 | N15: FREQUENCE[13] = 5950 | O15: 8.6 | P15: 5950 | Q15: FREQUENCE[13] = 5950 | R15: 8.5 | S15: 6000 | T15: FREQUENCE[13] = 6000 | U15: 8.6 | V15: 6000 | W15: FREQUENCE[13] = 6000 | X15: FREQUENCE[13]
A16: 14 | B16: 7500 | C16: =(2*formules!$D$3*B16)/(60*formules!$C$3) -> 125 | D16: =1000*(60*formules!$C$3)/(2*formules!$D$3*B16) -> 8 | E16: 8000 | F16: 7310 | G16: 6760 | H16: FREQUENCE[14] = 6760 | J16: 0 | K16: FREQUENCE[14] = 0 | M16: 0 | N16: FREQUENCE[14] = 0 | P16: 0 | Q16: FREQUENCE[14] = 0 | S16: 0 | T16: FREQUENCE[14] = 0 | V16: 0 | W16: FREQUENCE[14] = 0 | X16: FREQUENCE[14]
A17: 15 | B17: 8000 | C17: =(2*formules!$D$3*B17)/(60*formules!$C$3) -> 133.3333333 | D17: =1000*(60*formules!$C$3)/(2*formules!$D$3*B17) -> 7.5 | E17: 7500 | F17: 6850 | G17: 6310 | H17: FREQUENCE[15] = 6310 | I17: 9 | J17: 5260 | K17: FREQUENCE[15] = 5260 | L17: 7.8 | M17: 5060 | N17: FREQUENCE[15] = 5060 | O17: 7.5 | P17: 5060 | Q17: FREQUENCE[15] = 5060 | R17: 7.5 | S17: 5060 | T17: FREQUENCE[15] = 5060 | U17: 7.48 | V17: 5060 | W17: FREQUENCE[15] = 5060 | X17: FREQUENCE[15]
A18: 16 | B18: 8500 | C18: =(2*formules!$D$3*B18)/(60*formules!$C$3) -> 141.6666667 | D18: =1000*(60*formules!$C$3)/(2*formules!$D$3*B18) -> 7.058823529 | E18: 7058.823529 | F18: 6435 | G18: 5900 | H18: FREQUENCE[16] = 5900 | J18: 0 | K18: FREQUENCE[16] = 0 | M18: 0 | N18: FREQUENCE[16] = 0 | P18: 0 | Q18: FREQUENCE[16] = 0 | S18: 0 | T18: FREQUENCE[16] = 0 | V18: 0 | W18: FREQUENCE[16] = 0 | X18: FREQUENCE[16]
A19: 17 | B19: 9000 | C19: =(2*formules!$D$3*B19)/(60*formules!$C$3) -> 150 | D19: =1000*(60*formules!$C$3)/(2*formules!$D$3*B19) -> 6.666666667 | E19: 6666.666667 | F19: 6100 | G19: 5550 | H19: FREQUENCE[17] = 5550 | I19: 8.1 | J19: 4600 | K19: FREQUENCE[17] = 4600 | L19: 7.1 | M19: 4340 | N19: FREQUENCE[17] = 4340 | O19: 6.8 | P19: 5890 | Q19: FREQUENCE[17] = 5890 | R19: 8.5 | S19: 4500 | T19: FREQUENCE[17] = 4500 | U19: 6.88 | V19: 4320 | W19: FREQUENCE[17] = 4320 | X19: FREQUENCE[17]
A20: 18 | B20: 9500 | C20: =(2*formules!$D$3*B20)/(60*formules!$C$3) -> 158.3333333 | D20: =1000*(60*formules!$C$3)/(2*formules!$D$3*B20) -> 6.315789474 | E20: 6315.789474 | F20: 5770 | G20: 5230 | H20: FREQUENCE[18] = 5230 | J20: 0 | K20: FREQUENCE[18] = 0 | M20: 0 | N20: FREQUENCE[18] = 0 | P20: 0 | Q20: FREQUENCE[18] = 0 | S20: 0 | T20: FREQUENCE[18] = 0 | V20: 0 | W20: FREQUENCE[18] = 0 | X20: FREQUENCE[18]
A21: 19 | B21: 10000 | C21: =(2*formules!$D$3*B21)/(60*formules!$C$3) -> 166.6666667 | D21: =1000*(60*formules!$C$3)/(2*formules!$D$3*B21) -> 6 | E21: 6000 | F21: 5490 | G21: 4950 | H21: FREQUENCE[19] = 4950 | I21: 7.5 | J21: 3960 | K21: FREQUENCE[19] = 3960 | L21: 6.3 | M21: 3760 | N21: FREQUENCE[19] = 3760 | O21: 6.1 | P21: 3680 | Q21: FREQUENCE[19] = 3680 | R21: 6 | S21: 3680 | T21: FREQUENCE[19] = 3680 | U21: 5.96 | V21: 3680 | W21: FREQUENCE[19] = 3680 | X21: FREQUENCE[19]
A22: 20 | B22: 10500 | C22: =(2*formules!$D$3*B22)/(60*formules!$C$3) -> 175 | D22: =1000*(60*formules!$C$3)/(2*formules!$D$3*B22) -> 5.714285714 | E22: 5714.285714 | F22: 5220 | G22: 4680 | H22: FREQUENCE[20] = 4680 | J22: 0 | K22: FREQUENCE[20] = 0 | M22: 0 | N22: FREQUENCE[20] = 0 | P22: 0 | Q22: FREQUENCE[20] = 0 | S22: 0 | T22: FREQUENCE[20] = 0 | V22: 0 | W22: FREQUENCE[20] = 0 | X22: FREQUENCE[20]
A23: 21 | B23: 11000 | C23: =(2*formules!$D$3*B23)/(60*formules!$C$3) -> 183.3333333 | D23: =1000*(60*formules!$C$3)/(2*formules!$D$3*B23) -> 5.454545455 | E23: 5454.545455 | F23: 4990 | G23: 4440 | H23: FREQUENCE[21] = 4440 | I23: 7 | J23: 3500 | K23: FREQUENCE[21] = 3500 | L23: 5.9 | M23: 3220 | N23: FREQUENCE[21] = 3220 | O23: 5.5 | P23: 3220 | Q23: FREQUENCE[21] = 3220 | R23: 5.5 | S23: 3220 | T23: FREQUENCE[21] = 3220 | U23: 5.52 | V23: 3220 | W23: FREQUENCE[21] = 3220 | X23: FREQUENCE[21]
A24: 22 | B24: 11500 | C24: =(2*formules!$D$3*B24)/(60*formules!$C$3) -> 191.6666667 | D24: =1000*(60*formules!$C$3)/(2*formules!$D$3*B24) -> 5.217391304 | E24: 5217.391304 | F24: 4780 | G24: 4230 | H24: FREQUENCE[22] = 4230 | J24: 0 | K24: FREQUENCE[22] = 0 | M24: 0 | N24: FREQUENCE[22] = 0 | P24: 0 | Q24: FREQUENCE[22] = 0 | S24: 0 | T24: FREQUENCE[22] = 0 | V24: 0 | W24: FREQUENCE[22] = 0 | X24: FREQUENCE[22]
A25: 23 | B25: 12000 | C25: =(2*formules!$D$3*B25)/(60*formules!$C$3) -> 200 | D25: =1000*(60*formules!$C$3)/(2*formules!$D$3*B25) -> 5 | E25: 5000 | F25: 4380 | G25: 4030 | H25: FREQUENCE[23] = 4030 | I25: 6.5 | J25: 3100 | K25: FREQUENCE[23] = 3100 | L25: 5.3 | M25: 2900 | N25: FREQUENCE[23] = 2900 | O25: 5.2 | P25: 2760 | Q25: FREQUENCE[23] = 2760 | R25: 5 | S25: 2760 | T25: FREQUENCE[23] = 2760 | U25: 4.96 | V25: 2760 | W25: FREQUENCE[23] = 2760 | X25: FREQUENCE[23]
A26: 24 | B26: 12500 | C26: =(2*formules!$D$3*B26)/(60*formules!$C$3) -> 208.3333333 | D26: =1000*(60*formules!$C$3)/(2*formules!$D$3*B26) -> 4.8 | E26: 4800 | F26: 4390 | G26: 3870 | H26: FREQUENCE[24] = 3870 | J26: 0 | K26: FREQUENCE[24] = 0 | M26: 0 | N26: FREQUENCE[24] = 0 | P26: 0 | Q26: FREQUENCE[24] = 0 | S26: 0 | T26: FREQUENCE[24] = 0 | V26: 0 | W26: FREQUENCE[24] = 0 | X26: FREQUENCE[24]
A27: 25 | B27: 13000 | C27: =(2*formules!$D$3*B27)/(60*formules!$C$3) -> 216.6666667 | D27: =1000*(60*formules!$C$3)/(2*formules!$D$3*B27) -> 4.615384615 | E27: 4615.384615 | G27: 3680 | H27: FREQUENCE[25] = 3680 | I27: 6.1 | J27: 2770 | K27: FREQUENCE[25] = 2770 | L27: 5 | M27: 2500 | N27: FREQUENCE[25] = 2500 | O27: 4.6 | P27: 2500 | Q27: FREQUENCE[25] = 2500 | R27: 4.7 | S27: 2450 | T27: FREQUENCE[25] = 2450 | U27: 4.6 | V27: 2450 | W27: FREQUENCE[25] = 2450 | X27: FREQUENCE[25]
A28: 26 | B28: 13500 | C28: =(2*formules!$D$3*B28)/(60*formules!$C$3) -> 225 | D28: =1000*(60*formules!$C$3)/(2*formules!$D$3*B28) -> 4.444444444 | E28: 4444.444444 | G28: 3530 | H28: FREQUENCE[26] = 3530 | J28: 0 | K28: FREQUENCE[26] = 0 | M28: 0 | N28: FREQUENCE[26] = 0 | P28: 0 | Q28: FREQUENCE[26] = 0 | S28: 0 | T28: FREQUENCE[26] = 0 | V28: 0 | W28: FREQUENCE[26] = 0 | X28: FREQUENCE[26]
A29: 27 | B29: 14000 | C29: =(2*formules!$D$3*B29)/(60*formules!$C$3) -> 233.3333333 | D29: =1000*(60*formules!$C$3)/(2*formules!$D$3*B29) -> 4.285714286 | E29: 4285.714286 | G29: 3380 | H29: FREQUENCE[27] = 3380 | I29: 5.8 | J29: 2500 | K29: FREQUENCE[27] = 2500 | L29: 4.7 | M29: 2250 | N29: FREQUENCE[27] = 2250 | O29: 4.4 | P29: 2180 | Q29: FREQUENCE[27] = 2180 | R29: 4.3 | S29: 2180 | T29: FREQUENCE[27] = 2180 | U29: 4.32 | V29: 2180 | W29: FREQUENCE[27] = 2180 | X29: FREQUENCE[27]
B32: Temps incompressible: | D32: avec délai = 0 dans l'eprom, il faut 71us entre la detection pickup haut et spark
D33: avec délai = 1 dans l'eprom, il faut 91us entre la detection pickup haut et spark (soit 71us +20us)

Sheet Dwell variable
D2: coef: | E2: DWELL = PERIODE * 50
B3: =Advance_curve!B8 -> TIMER1H count | D3: 50
B4: =Advance_curve!B9 -> 11 | C4: =$D$3*Advance_curve!B9 -> 550 | D4: µs
B5: =Advance_curve!B10 -> 12 | C5: =$D$3*Advance_curve!B10 -> 600
B6: =Advance_curve!B11 -> 13 | C6: =$D$3*Advance_curve!B11 -> 650
B7: =Advance_curve!B12 -> 14 | C7: =$D$3*Advance_curve!B12 -> 700
B8: =Advance_curve!B13 -> 15 | C8: =$D$3*Advance_curve!B13 -> 750
B9: =Advance_curve!B14 -> 16 | C9: =$D$3*Advance_curve!B14 -> 800
B10: =Advance_curve!B15 -> 17 | C10: =$D$3*Advance_curve!B15 -> 850
B11: =Advance_curve!B16 -> 18 | C11: =$D$3*Advance_curve!B16 -> 900
B12: =Advance_curve!B17 -> 19 | C12: =$D$3*Advance_curve!B17 -> 950
B13: =Advance_curve!B18 -> 20 | C13: =$D$3*Advance_curve!B18 -> 1000
B14: =Advance_curve!B19 -> 21 | C14: =$D$3*Advance_curve!B19 -> 1050
B15: =Advance_curve!B20 -> 22 | C15: =$D$3*Advance_curve!B20 -> 1100
B16: =Advance_curve!B21 -> 23 | C16: =$D$3*Advance_curve!B21 -> 1150
B17: =Advance_curve!B22 -> 24 | C17: =$D$3*Advance_curve!B22 -> 1200
B18: =Advance_curve!B23 -> 25 | C18: =$D$3*Advance_curve!B23 -> 1250
B19: =Advance_curve!B24 -> 26 | C19: =$D$3*Advance_curve!B24 -> 1300
B20: =Advance_curve!B25 -> 27 | C20: =$D$3*Advance_curve!B25 -> 1350
B21: =Advance_curve!B26 -> 28 | C21: =$D$3*Advance_curve!B26 -> 1400
B22: =Advance_curve!B27 -> 29 | C22: =$D$3*Advance_curve!B27 -> 1450
B23: =Advance_curve!B28 -> 30 | C23: =$D$3*Advance_curve!B28 -> 1500
B24: =Advance_curve!B29 -> 31 | C24: =$D$3*Advance_curve!B29 -> 1550
B25: =Advance_curve!B30 -> 32 | C25: =$D$3*Advance_curve!B30 -> 1600
B26: =Advance_curve!B31 -> 33 | C26: =$D$3*Advance_curve!B31 -> 1650
B27: =Advance_curve!B32 -> 34 | C27: =$D$3*Advance_curve!B32 -> 1700
B28: =Advance_curve!B33 -> 35 | C28: =$D$3*Advance_curve!B33 -> 1750
B29: =Advance_curve!B34 -> 36 | C29: =$D$3*Advance_curve!B34 -> 1800
B30: =Advance_curve!B35 -> 37 | C30: =$D$3*Advance_curve!B35 -> 1850
B31: =Advance_curve!B36 -> 38 | C31: =$D$3*Advance_curve!B36 -> 1900
B32: =Advance_curve!B37 -> 39 | C32: =$D$3*Advance_curve!B37 -> 1950
B33: =Advance_curve!B38 -> 40 | C33: =$D$3*Advance_curve!B38 -> 2000
B34: =Advance_curve!B39 -> 41 | C34: =$D$3*Advance_curve!B39 -> 2050
B35: =Advance_curve!B40 -> 42 | C35: =$D$3*Advance_curve!B40 -> 2100
B36: =Advance_curve!B41 -> 43 | C36: =$D$3*Advance_curve!B41 -> 2150
B37: =Advance_curve!B42 -> 44 | C37: =$D$3*Advance_curve!B42 -> 2200
B38: =Advance_curve!B43 -> 45 | C38: =$D$3*Advance_curve!B43 -> 2250
B39: =Advance_curve!B44 -> 46 | C39: =$D$3*Advance_curve!B44 -> 2300
B40: =Advance_curve!B45 -> 47 | C40: =$D$3*Advance_curve!B45 -> 2350
B41: =Advance_curve!B46 -> 48 | C41: =$D$3*Advance_curve!B46 -> 2400
B42: =Advance_curve!B47 -> 49 | C42: =$D$3*Advance_curve!B47 -> 2450
B43: =Advance_curve!B48 -> 50 | C43: =$D$3*Advance_curve!B48 -> 2500
B44: =Advance_curve!B49 -> 51 | C44: =$D$3*Advance_curve!B49 -> 2550
B45: =Advance_curve!B50 -> 52 | C45: =$D$3*Advance_curve!B50 -> 2600
B46: =Advance_curve!B51 -> 53 | C46: =$D$3*Advance_curve!B51 -> 2650
B47: =Advance_curve!B52 -> 54 | C47: =$D$3*Advance_curve!B52 -> 2700
B48: =Advance_curve!B53 -> 55 | C48: =$D$3*Advance_curve!B53 -> 2750
B49: =Advance_curve!B54 -> 56 | C49: =$D$3*Advance_curve!B54 -> 2800
B50: =Advance_curve!B55 -> 57 | C50: =$D$3*Advance_curve!B55 -> 2850
B51: =Advance_curve!B56 -> 58 | C51: =$D$3*Advance_curve!B56 -> 2900
B52: =Advance_curve!B57 -> 59 | C52: =$D$3*Advance_curve!B57 -> 2950
B53: =Advance_curve!B58 -> 60 | C53: =$D$3*Advance_curve!B58 -> 3000
B54: =Advance_curve!B59 -> 61 | C54: =$D$3*Advance_curve!B59 -> 3050
B55: =Advance_curve!B60 -> 62 | C55: =$D$3*Advance_curve!B60 -> 3100
B56: =Advance_curve!B61 -> 63 | C56: =$D$3*Advance_curve!B61 -> 3150
B57: =Advance_curve!B62 -> 64 | C57: =$D$3*Advance_curve!B62 -> 3200
B58: =Advance_curve!B63 -> 65 | C58: =$D$3*Advance_curve!B63 -> 3250
B59: =Advance_curve!B64 -> 66 | C59: =$D$3*Advance_curve!B64 -> 3300
B60: =Advance_curve!B65 -> 67 | C60: =$D$3*Advance_curve!B65 -> 3350
B61: =Advance_curve!B66 -> 68 | C61: =$D$3*Advance_curve!B66 -> 3400
B62: =Advance_curve!B67 -> 69 | C62: =$D$3*Advance_curve!B67 -> 3450
B63: =Advance_curve!B68 -> 70 | C63: =$D$3*Advance_curve!B68 -> 3500
B64: =Advance_curve!B69 -> 71 | C64: =$D$3*Advance_curve!B69 -> 3550
B65: =Advance_curve!B70 -> 72 | C65: =$D$3*Advance_curve!B70 -> 3600
B66: =Advance_curve!B71 -> 73 | C66: =$D$3*Advance_curve!B71 -> 3650
B67: =Advance_curve!B72 -> 74 | C67: =$D$3*Advance_curve!B72 -> 3700
B68: =Advance_curve!B73 -> 75 | C68: =$D$3*Advance_curve!B73 -> 3750
B69: =Advance_curve!B74 -> 76 | C69: =$D$3*Advance_curve!B74 -> 3800
B70: =Advance_curve!B75 -> 77 | C70: =$D$3*Advance_curve!B75 -> 3850
B71: =Advance_curve!B76 -> 78 | C71: =$D$3*Advance_curve!B76 -> 3900
B72: =Advance_curve!B77 -> 79 | C72: =$D$3*Advance_curve!B77 -> 3950
B73: =Advance_curve!B78 -> 80 | C73: =$D$3*Advance_curve!B78 -> 4000
B74: =Advance_curve!B79 -> 81 | C74: =$D$3*Advance_curve!B79 -> 4050
B75: =Advance_curve!B80 -> 82 | C75: =$D$3*Advance_curve!B80 -> 4100
B76: =Advance_curve!B81 -> 83 | C76: =$D$3*Advance_curve!B81 -> 4150
B77: =Advance_curve!B82 -> 84 | C77: =$D$3*Advance_curve!B82 -> 4200
B78: =Advance_curve!B83 -> 85 | C78: =$D$3*Advance_curve!B83 -> 4250
B79: =Advance_curve!B84 -> 86 | C79: =$D$3*Advance_curve!B84 -> 4300
B80: =Advance_curve!B85 -> 87 | C80: =$D$3*Advance_curve!B85 -> 4350
B81: =Advance_curve!B86 -> 88 | C81: =$D$3*Advance_curve!B86 -> 4400
B82: =Advance_curve!B87 -> 89 | C82: =$D$3*Advance_curve!B87 -> 4450
B83: =Advance_curve!B88 -> 90 | C83: =$D$3*Advance_curve!B88 -> 4500
B84: =Advance_curve!B89 -> 91 | C84: =$D$3*Advance_curve!B89 -> 4550
B85: =Advance_curve!B90 -> 92 | C85: =$D$3*Advance_curve!B90 -> 4600
B86: =Advance_curve!B91 -> 93 | C86: =$D$3*Advance_curve!B91 -> 4650
B87: =Advance_curve!B92 -> 94 | C87: =$D$3*Advance_curve!B92 -> 4700
B88: =Advance_curve!B93 -> 95 | C88: =$D$3*Advance_curve!B93 -> 4750
B89: =Advance_curve!B94 -> 96 | C89: =$D$3*Advance_curve!B94 -> 4800
B90: =Advance_curve!B95 -> 97 | C90: =$D$3*Advance_curve!B95 -> 4850
B91: =Advance_curve!B96 -> 98 | C91: =$D$3*Advance_curve!B96 -> 4900
B92: =Advance_curve!B97 -> 99 | C92: =$D$3*Advance_curve!B97 -> 4950
B93: =Advance_curve!B98 -> 100 | C93: =$D$3*Advance_curve!B98 -> 5000
B94: =Advance_curve!B99 -> 101 | C94: =$D$3*Advance_curve!B99 -> 5050
B95: =Advance_curve!B100 -> 102 | C95: =$D$3*Advance_curve!B100 -> 5100
B96: =Advance_curve!B101 -> 103 | C96: =$D$3*Advance_curve!B101 -> 5150
B97: =Advance_curve!B102 -> 104 | C97: =$D$3*Advance_curve!B102 -> 5200
B98: =Advance_curve!B103 -> 105 | C98: =$D$3*Advance_curve!B103 -> 5250

Sheet Version
A4: v7.9r13c2 | B4: [HARD] Correction RA1 forcé a 1, car pullup R5 sur PCB
A5: v7.9r13c3 | B5: [XLS] Valeur de dwell passe de 2 choix (500,1000) a 6 choix (500,1000,2000,3000,4000,5000).
A6: v7.9r14c0 | B6: [SOFT,XLS] Ajout d'une valeur de dwell "AUTO" pour lequel la durée de dwell est proportionnelle a PERIODE.
A7: v7.9r14c1 | B7: [SOFT] Code protection OFF
A8: v7.9r15c0 | B8: [XLS] La valeur d'avance affichée dans l'onglet "advance_at_lowRPM" ne prenait pas en compte la position du pickup, c'était donc une valeur RELATIVE, pas ABSOLUE. Multiplicateur peut descendre a 1 (soft OK)
B9: [SOFT] si JP2 a la masse alors PIC bypass la courbe d'avance et envoi spark dés que detection front descendant du pickup
B10: [SOFT] RB3 (ex TP2) n'était pas forcé en OUTPUT
B11: [HARD] Suppression TP2 inutile
B12: [HARD] Reduction R7 de 330 a 180 (Sinon ne declenche pas les SCR de type BTA).
B13: [HARD] Suppression C9-100n car courant d'appel dépasse Imax du PIC
A14: v7.9r16c0 | B14: [XLS] La valeur d'avance affichée dans l'onglet "advance_at_lowRPM" était fausse.
B15: [SOFT] boucles d'attente pkp haut et bas en ASM: Precision x10 !!
B16: [XLS] Ajout documentation onglet README
A17: v7.9r16c1 | B17: [XLS] Tuning: a low RPM, le PIC attend 4us x PERIODE mais en vrai bcl dure plus de 4us, du coup il y a un offset de 5deg (20° affiché et 15° reels) pour simplifier correction: la valeur delay (I1) passe de 4 a 4.4
B18: [SOFT] Calibration de la boucle 40us
A19: v7.9r17c0 | B19: [XLS] Ajout d'un Rev Limiter a l'adresse Eprom 121 si swich JP2 a la masse
B20: [SOFT] JP2 (ex Bypass curve) est utilisé pour activer une limitation de RPM inferieur au maxi et stocké en @121 de l'eprom (Scooter légal)
A21: v7.9r17c1 | B21: [XLS] Renommage en accord avec code. Ajout RPM mini dans le titre onglet low_rpm
A22: v7.9r18c0 | B22: [XLS] Ajout d'un délai at Kick Start selectionnable par le user
B23: [SOFT] Si TMR1 déborde, PIC attend une pause d'une durée fixe VLRPM qui a été définie par le user et écrite en eprom. Sinon spark immediate entre 0 et 480RPM car TMR1 = 0 = croit que RPM élévés
A24: v7.9r19c0 | B24: [XLS] Ajout step 200us permet de positionner le pkp jusqu’à 360° btdc
B25: [SOFT] Ajout step 200us permet de positionner le pkp jusqu’à 360° btdc
B26: [SOFT] Si TMR1 déborde, PIC attend une pause de Nbr débordements * VLRPM qui a été définie par le user et écrite en eprom. Sinon spark immediate entre 0 et 480RPM car TMR1 = 0 = croit que RPM élévés
A27: v7.9r20c0 | B27: [SOFT] Suppresion JP1: autospark et RB3 output PWM
B28: [SOFT] RB3 devient RevCoil, RB5 devient sortie Tacho, meme signal que RA2
B29: [SOFT] Lecture de JP2 (rev limit) dés que pkp repasse a 1, donc possible de changer rpm limit pendant la marche
B30: [XLS] Modif commentaire dwell, Renommage en ACCDI_v79r20c0 (au lieu curve_adjust_16f628_xxxx)
B31: [XLS] Ajout onglet EPROM16 pour configurer 16F628 directement avec pickit3 sans besoin de icprog
A32: v7.9r20c1 | B32: [XLS] Modif choix 2,4 stk wasted spark
B33: [XLS] Correction. Le temps en us pour 1° changeait selon 2 ou 4tps ! (faux en 4)
A34: v7.9r20c2 | B34: [XLS] Ajout "led diagnostic reset" @ 119
B35: [SOFT] Si LED@119 = 0 alors pas de clignotement led pour diagnostiquer dernier reset
